Cogmind - Beta 15 @@@ ROGUE MODE // 2025.07.09 @ 13:35:24 Player: EX-OCT Result: Destroyed by Tracker with Linked Autogun Performance ------------- Evolutions (8) 4000 Regions Visited (31) 6200 Robots Destroyed (228) 1140 Value Destroyed (11524) 11524 Prototype IDs (77) 1540 Alien Tech Used (12) 2400 Bonus (15839) 15839 TOTAL SCORE: 42643 Bonus ------- Triggered Max Security 1000 High Alert Combat Kills 1155 Follower Combat Kills 121 Met Data Miner 300 Triggered Deep Caves Wall 500 Exposed GOLEM Chamber 500 Met Zhirov 300 Met Warlord at Base 500 MAIN.C Attacked Warlord 500 Used Core Reset Matrix 3000 Met Warlord at Research 2000 Scanned by Researcher 500 Pursued by Intercept 500 Integrated Exoskeleton 5000 Friendly Fire -37 Cogmind --------- Core Integrity 0/1450 Matter 64/300 Energy 450/450 System Corruption 0% +Membrane Temperature Cool (9) +ITN Movement Walking (30) Location -2/Section 7 Parts ------- > --- POWER (2) -------- Matter Drive > --- PROPULSION (4) --- Sigix Exoskeleton > --- UTILITY (3) ------ Experimental Targeting Computer Experimental Core Analyzer Core Physics Calibrator > --- WEAPON (2) ------- Sigix Sheargun Sigix Sheargun > --- INVENTORY (7) ---- Experimental Targeting Computer Experimental Core Analyzer Transdimensional Reconstructor High-powered Transdimensional Reconstructor Terrabomb Warp Gun Sigix Sheargun Peak State ------------ > --- POWER ------------ Matter Drive > --- PROPULSION ------- Enhanced Biometal Leg Sigix Exoskeleton > --- UTILITY ---------- Experimental Targeting Computer Experimental Core Analyzer Core Physics Calibrator > --- WEAPON ----------- Sigix Sheargun Sigix Sheargun > --- INVENTORY -------- Experimental Targeting Computer Experimental Core Analyzer Transdimensional Reconstructor High-powered Transdimensional Reconstructor Terrabomb Warp Gun Sigix Sheargun [Rating: 244] Favorites ----------- Power Assembled Flux Generator Engine Light Deuterium Engine Power Core Light Fission Core Reactor Assembled Flux Generator Propulsion Assembled Alloy Leg Treads Light Treads Leg Assembled Alloy Leg Hover Unit Combat Antigrav System Flight Unit Cooled Cesium-ion Thruster Utility Experimental Signal Interpreter Device Graphene Brace Storage Assembled Biocell Array Processor Experimental Signal Interpreter Hackware Improved Hacking Suite Protection Improved Propulsion Shielding Artifact Core Physics Calibrator Weapon Assembled Focal Cannon Energy Gun Quantum Rifle Energy Cannon Assembled Focal Cannon Ballistic Gun Railgun Ballistic Cannon Hypervelocity Mass Driver Launcher Point Singularity Launcher Special Weapon Plasma Cutter Impact Weapon Mace Piercing Weapon Makeshift Spear Build | -11 -10 -10 -10 -9 -8 -7 -7 -7 -7 -6 -6 -6 -6 -6 -6 -5 -5 -5 -5 -5 -4 -4 -4 -4 -4 -3 -3 -3 -2 -2 -2 ------- Run | Yrd Mat Min Exi Min Mat Fac Low Low Dat Pro Fac Low Low Zio Dee Pro Fac Upp Upp Zhi Pro Fac Upp Upp War Pro Res Qua Res Tes Sec Slots Evolved 16 | . . . . . 4 2 . . . . 2 . . . . . 2 . . . . 2 . . . . 2 . 2 . . Power 1 | . . . . . . . . . . . 1 . . . . . . . . . . . . . . . . . . . . Propulsion 4 | . . . . . 2 . . . . . . . . . . . . . . . . . . . . . . . 2 . . Utility 10 | . . . . . 2 2 . . . . 1 . . . . . 2 . . . . 2 . . . . 1 . . . . Weapon 1 | . . . . . . . . . . . . . . . . . . . . . . . . . . . 1 . . . . Parts Attached 272 | 4 10 . . . 13 10 1 . . 4 15 . 1 7 1 3 6 1 5 3 1 19 5 3 6 1 18 19 65 25 26 Power 27 | . 1 . . . 2 . . . . 2 1 . 1 . . . . . . . . . . 1 1 . . 3 7 3 5 Engine 4 | . 1 . . . 2 . . . . . 1 . . . . . . . . . . . . . . . . . . . . Core 3 | . . . . . . . . . . 2 . . 1 . . . . . . . . . . . . . . . . . . Reactor 20 | . . . . . . . . . . . . . . . . . . . . . . . . 1 1 . . 3 7 3 5 Propulsion 60 | 2 3 . . . 4 3 . . . . 5 . . . . 1 2 1 2 1 . 6 . . 4 . 2 10 9 2 3 Treads 2 | 2 . . . . . . . . . . . . . . . . . . . . . . . . . . . . . . . Leg 27 | . . . . . 2 . . . . . . . . . . . 2 1 2 . . 6 . . 4 . 2 7 . . 1 Wheel . | . . . . . . . . . . . . . . . . . . . . . . . . . . . . . . . . Hover 16 | . . . . . . . . . . . . . . . . . . . . . . . . . . . . 3 9 2 2 Flight 15 | . 3 . . . 2 3 . . . . 5 . . . . 1 . . . 1 . . . . . . . . . . . Utility 135 | . 2 . . . 6 6 1 . . 2 7 . . 6 1 2 4 . 3 2 1 12 3 . . . 13 2 34 15 13 Device 74 | . 1 . . . 2 2 1 . . . 3 . . . 1 1 1 . 2 1 1 8 1 . . . 7 2 20 12 8 Storage 9 | . . . . . . . . . . . . . . 1 . . . . . 1 . . . . . . 2 . 4 1 . Processor 25 | . 1 . . . 1 1 . . . . 1 . . 5 . 1 1 . . . . . . . . . 1 . 8 1 4 Hackware 20 | . . . . . 3 2 . . . 2 3 . . . . . 1 . . . . 3 2 . . . 2 . 2 . . Protection 6 | . . . . . . 1 . . . . . . . . . . 1 . 1 . . 1 . . . . 1 . . 1 . Artifact 1 | . . . . . . . . . . . . . . . . . . . . . . . . . . . . . . . 1 Weapon 50 | 2 4 . . . 1 1 . . . . 2 . . 1 . . . . . . . 1 2 2 1 1 3 4 15 5 5 Energy Gun 13 | 1 . . . . . . . . . . . . . . . . . . . . . 1 1 . 1 1 1 2 1 2 2 Energy Cannon 9 | . . . . . . . . . . . . . . . . . . . . . . . . 2 . . 2 . 5 . . Ballistic Gun 11 | 1 3 . . . . . . . . . . . . . . . . . . . . . 1 . . . . . 2 2 2 Ballistic Cannon 6 | . . . . . . . . . . . . . . . . . . . . . . . . . . . . 1 5 . . Launcher 4 | . . . . . . . . . . . . . . . . . . . . . . . . . . . . 1 2 . 1 Special Weapon 4 | . . . . . . 1 . . . . 1 . . 1 . . . . . . . . . . . . . . . 1 . Impact Weapon 1 | . 1 . . . . . . . . . . . . . . . . . . . . . . . . . . . . . . Slashing Weapon . | . . . . . . . . . . . . . . . . . . . . . . . . . . . . . . . . Piercing Weapon 2 | . . . . . 1 . . . . . 1 . . . . . . . . . . . . . . . . . . . . Special Melee Weapon . | . . . . . . . . . . . . . . . . . . . . . . . . . . . . . . . . Unidentified Prototypes 37 | . . . . . 1 2 . . . . 2 . . 5 . . . . . 4 . 2 . . 3 . 3 2 4 3 6 Corrupted Parts 1 | . . . . . . . . . . . . . . . . . . . . . . 1 . . . . . . . . . System Corruption 7 | . . . . . . . . . . . . . . . . . . . . . . 7 . . . . . . . . . Parts Lost 108 | . 1 . . . 4 . 2 1 . 2 1 . . . 3 . 1 . 4 . 9 3 2 1 . 4 4 30 13 8 15 Power 14 | . . . . . . . . . . . 1 . . . . . . . . . 1 . . 1 . . . 3 4 2 2 Propulsion 26 | . . . . . 2 . . . . . . . . . . . 1 . 2 . 2 . . . . . 1 12 1 1 4 Utility 43 | . . . . . . . 2 . . 2 . . . . 2 . . . 2 . 4 2 1 . . 3 1 9 6 4 5 Weapon 25 | . 1 . . . 2 . . 1 . . . . . . 1 . . . . . 2 1 1 . . 1 2 6 2 1 4 Highest Loss Streak 25 | . 1 . . . 3 . 2 1 . 1 1 . . . 3 . 1 . 2 . 3 1 1 1 . 3 1 25 5 4 5 To Critical Strikes . | . . . . . . . . . . . . . . . . . . . . . . . . . . . . . . . . Average Backups 6 | . 4 4 5 5 4 3 5 5 5 4 4 5 5 4 4 3 3 4 3 4 4 3 5 4 4 5 6 13 13 13 11 Power . | . 1 1 1 1 . . . . . . . . . . . . . . . . . . 1 . . 1 1 1 1 1 . Propulsion 1 | . . 1 1 1 . . 1 1 1 1 1 2 2 2 2 1 . . . . . 1 2 1 1 1 1 4 1 1 . Utility 2 | . . 1 2 2 3 3 4 4 4 3 2 2 2 2 2 1 2 4 3 4 3 . 1 1 1 1 2 2 4 4 4 Weapon . | . 1 1 1 1 . . . . . . . . . . . . . . . . . . . . 1 1 1 2 2 2 2 Tool/Special . | . . . . . . . . . . . . . . . . . . . . . . . . . . . . . . . . Unused Backups 52 | 1 . 3 . . 1 1 . . . . 1 . . 2 1 1 1 . 1 . . . . . . . . 3 27 1 8 Power 5 | 1 . . . . . . . . . . . . . . . . . . . . . . . . . . . 1 3 . . Propulsion 3 | . . . . . . . . . . . . . . . . 1 . . . . . . . . . . . . 2 . . Utility 34 | . . 1 . . 1 . . . . . 1 . . 1 1 . 1 . 1 . . . . . . . . 2 21 1 3 Weapon 4 | . . 2 . . . . . . . . . . . . . . . . . . . . . . . . . . 1 . 1 Tool/Special 6 | . . . . . . 1 . . . . . . . 1 . . . . . . . . . . . . . . . . 4 Average Slot Usage (%) 87 | . 82 85 85 85 76 88 97 86 84 80 94 100 100 99 98 79 87 87 84 87 77 81 93 94 96 92 93 84 85 91 84 Engine 1 | . 1 . . . 6 7 7 7 7 4 5 6 6 6 6 . . . . . . . . . 1 . . . . . . Reactor 4 | . . . . . . . . . . . . . . . . 5 5 5 5 5 5 5 5 5 5 5 4 5 7 7 7 Leg 10 | . . . . . 2 . . . . . . . . . . 9 19 22 19 22 13 16 21 21 21 21 18 17 . . 2 Hover 4 | . . . . . . . . . . . . . . . . . . . . . . . . . . . . . 21 22 20 Flight 6 | . 22 28 28 28 21 27 30 30 30 30 26 26 26 26 26 13 2 . . . . . . . . . . . . . . Device 16 | . 11 14 14 14 9 14 13 15 15 6 9 26 26 22 19 16 16 17 12 11 17 15 19 21 21 20 22 16 18 22 14 Storage 3 | . . . . . . . . . . . . . . 3 6 2 5 5 5 5 5 5 5 5 5 5 6 3 4 4 4 Processor 14 | . 12 14 14 14 12 . 7 7 7 7 6 6 6 6 6 12 16 17 17 17 17 15 15 15 15 15 14 13 21 21 19 Hackware 7 | . . . . . 13 28 21 15 15 16 22 6 6 6 6 6 5 5 5 5 . 7 12 15 15 13 9 12 1 . . Protection 1 | . . . . . . 1 . . . 3 5 6 6 6 6 . . . 3 4 3 5 2 . . . 1 1 . . . Energy Gun 1 | . 1 . . . . . . . . . . . . . . . . . . . . . 5 1 . . 4 2 . . 6 Energy Cannon 5 | . . . . . . . . . . . . . . . . 6 11 11 11 11 10 7 . 5 5 5 8 8 3 3 2 Ballistic Gun 2 | . 24 28 28 28 4 . . . . . . . . . . . . . . . . . 3 3 5 4 . . . 2 2 Piercing Weapon 1 | . . . . . 7 7 7 7 7 7 8 6 6 6 6 3 . . . . . . . . . . . . . . . Peak Build Rating 244 | 4 9 9 9 9 25 41 40 40 38 45 68 65 65 76 88 120 126 124 124 128 127 145 133 129 138 138 155 165 179 194 244 Average Rating 117 | 3 7 8 9 9 20 35 38 38 38 35 59 65 65 68 71 108 124 123 119 120 121 131 127 120 122 135 149 147 158 183 183 On Entrance 78 | . 4 8 9 9 9 25 39 40 38 38 45 65 65 65 70 79 120 120 124 118 123 98 131 127 114 138 120 155 66 178 180 Naked Turns . | . . . . . . . . . . . . . . . . . . . . . . . . . . . . . . . . Heaviest Build 95 | 3 8 7 7 7 10 10 8 8 7 11 22 22 22 22 22 77 78 78 79 78 83 84 83 80 71 71 92 95 90 95 88 Greatest Support 108 | 3 8 8 8 8 25 21 22 15 15 15 23 23 23 23 34 60 90 95 95 90 90 90 85 85 86 86 93 93 92 108 90 Greatest Overweight (x) 4 | . . . . . 1 . . . . . . . . . . 1 1 1 1 1 1 2 . 1 1 . 1 4 . 1 1 Average Overweight (x) . | . . . . . . . . . . . . . . . . . . . . . . . . . . . . . . . . Largest Inventory Capacity 25 | 5 5 5 5 5 5 5 5 5 5 5 5 5 5 5 5 5 5 5 5 5 5 5 5 5 5 5 15 15 25 15 17 Average Capacity 7 | 5 5 5 5 5 5 5 5 5 5 5 5 5 5 5 5 5 5 5 5 5 5 5 5 5 5 5 9 14 14 15 15 Most Carried 17 | 2 5 5 5 5 5 5 5 5 5 5 5 5 5 5 5 5 5 4 5 5 5 5 5 5 5 5 14 15 15 15 17 Average Carried 6 | . 4 4 5 5 4 3 5 5 5 4 4 5 5 4 4 3 3 4 3 4 4 3 4 4 4 5 6 13 14 13 11 Final Capacity 15 | 5 5 5 5 5 5 5 5 5 5 5 5 5 5 5 5 5 5 5 5 5 5 5 5 5 5 5 15 5 15 15 7 Final Carried 15 | 1 5 5 5 5 5 5 5 5 5 5 5 5 5 4 5 3 4 4 4 5 3 5 5 4 5 5 14 5 15 10 7 Class Distribution -------------------- 30% | Golem 15% | Hacker-Mutant 8% | Mutant 7% | Hacker-Skirmisher 7% | Scavenger-Mutant 7% | Hacker-Sprinter 6% | Scavenger-Scout 3% | Scout 3% | Hacker-Scout Dominant Class ---------------- Mutant | -10/Materials Commander-Mutant | -10/Mines Commander-Mutant | -10/Exiles Commander-Mutant | -9/Mines Hacker-Sprinter | -8/Materials Hacker-Sprinter | -7/Factory Hacker-Scout | -7/Lower Caves Hacker-Sprinter | -7/Lower Caves Hacker-Sprinter | -7/Data Miner Hacker-Sprinter | -6/Proximity Caves Hacker-Scout | -6/Factory Scout | -6/Lower Caves Scout | -6/Lower Caves Sprinter | -6/Zion Sprinter | -6/Deep Caves Golem | -5/Proximity Caves Golem | -5/Factory Golem | -5/Upper Caves Golem | -5/Upper Caves Golem | -5/Zhirov Golem | -4/Proximity Caves Hacker-Mutant | -4/Factory Hacker-Mutant | -4/Upper Caves Hacker-Mutant | -4/Upper Caves Hacker-Mutant | -4/Warlord Hacker-Mutant | -3/Proximity Caves Hacker-Skirmisher | -3/Research Hacker-Skirmisher | -3/Quarantine Scavenger-Mutant | -2/Research Scavenger-Mutant | -2/Testing Scavenger-Scout | -2/Section 7 Resources | -11 -10 -10 -10 -9 -8 -7 -7 -7 -7 -6 -6 -6 -6 -6 -6 -5 -5 -5 -5 -5 -4 -4 -4 -4 -4 -3 -3 -3 -2 -2 -2 ----------- Run | Yrd Mat Min Exi Min Mat Fac Low Low Dat Pro Fac Low Low Zio Dee Pro Fac Upp Upp Zhi Pro Fac Upp Upp War Pro Res Qua Res Tes Sec Matter Collected 6452 | 244 507 112 . . 279 18 46 34 . 86 220 . 10 80 . 40 124 20 80 . 110 143 199 121 120 30 228 228 1658 1075 640 Remotely . | . . . . . . . . . . . . . . . . . . . . . . . . . . . . . . . . Salvage Created 11358 | 87 460 28 . . 824 18 . . . 29 158 . . . 20 249 1316 . 835 . 696 1445 436 90 . 55 809 685 540 1122 1456 Parts 570 | 7 28 1 . . 32 4 . . . 1 20 . . . . 12 78 . 31 . 23 68 14 3 . 2 41 36 34 59 76 Haulers Intercepted 6 | . 2 . . . 1 . . . . . . . . . . . . . 1 . . . . . . . . . 2 . . Recyclers Shooed 3 | . 1 . . . . . . . . . . . . . . . . . . . . . . . . . 2 . . . . Parts Field Recycled . | . . . . . . . . . . . . . . . . . . . . . . . . . . . . . . . . Retrieved Matter . | . . . . . . . . . . . . . . . . . . . . . . . . . . . . . . . . Parts Self-Destructed 95 | . . . . . . . 6 . . . . . . . . 12 . 1 29 . 27 . 12 6 . 2 . . . . . Prevented 1 | . . . . . . . . . . . . . . . . . . . . . . . . . . 1 . . . . . Kills | -11 -10 -10 -10 -9 -8 -7 -7 -7 -7 -6 -6 -6 -6 -6 -6 -5 -5 -5 -5 -5 -4 -4 -4 -4 -4 -3 -3 -3 -2 -2 -2 ------- Run | Yrd Mat Min Exi Min Mat Fac Low Low Dat Pro Fac Low Low Zio Dee Pro Fac Upp Upp Zhi Pro Fac Upp Upp War Pro Res Qua Res Tes Sec Combat Hostiles Destroyed 182 | . 7 2 . . 8 . . . . 1 . . . . . 4 21 . 17 . 16 17 5 2 . 1 16 11 8 16 30 Melee 8 | . . . . . 5 . . . . 1 . . . . . . . . . . . . . . . 1 . . . . 1 Guns 37 | . 7 2 . . 3 . . . . . . . . . . . . . . . . 1 5 1 . . 4 2 1 4 7 Cannons 108 | . . . . . . . . . . . . . . . . 4 21 . 17 . 16 15 . 1 . . 11 7 3 12 1 AOE 26 | . . . . . . . . . . . . . . . . . . . . . . 1 . . . . . . 4 . 21 Classes Destroyed 22 | 2 4 . . . 3 . . . . . . . . . . 1 3 . 1 . . 1 1 . . . 1 . 1 1 3 Worker 5 | . 1 . . . . . . . . . . . . . . . . . . . . . . . . . . 1 1 . 2 Builder 9 | . . . . . 1 1 . . . . 5 . . . . . 2 . . . . . . . . . . . . . . Tunneler 5 | 1 . . . . . . . . . . . . . . . . . . . . . 1 . . . . 1 . 2 . . Hauler 6 | . 2 . . . 1 . . . . . . . . . . . . . 1 . . . . . . . . . 2 . . Recycler 8 | 1 1 . . . 4 . . . . . . . . . . . . . . . . 1 . . . . . . . 1 . Mechanic 2 | . . . . . . . . . . . . . . . . . . . . . . 1 . . . . . . . . 1 Operator 6 | . . . . . 1 . . . . . 2 . . . . . 1 . . . . 1 . . . . 1 . . . . Watcher 5 | . . . . . . . . . . . . . . . . . . . . . . . . . . . . . . 1 4 Swarmer 46 | . 3 2 . . 1 . . . . 1 . . . . . . . . 8 . 10 . . 1 . . 6 . 5 4 5 Cutter 2 | . . . . . . . . . . . . . . . . . . . . . . . . . . . . . . . 2 Saboteur 4 | . . . . . . . . . . . . . . . . . . . . . . . . . . . . . . . 4 Grunt 61 | . 4 . . . 6 . . . . . . . . . . 3 9 . 8 . 1 10 3 . . . . 5 . 3 9 Brawler 4 | . . . . . . . . . . . . . . . . 1 . . . . 2 . . 1 . . . . . . . Duelist 2 | . . . . . . . . . . . . . . . . . . . 1 . . 1 . . . . . . . . . Protector 1 | . . . . . . . . . . . . . . . . . . . . . . . . . . . . . . . 1 Sentry 13 | . . . . . 1 . . . . . . . . . . . 1 . . . 2 2 1 . . . 2 . 2 . 2 Specialist 2 | . . . . . . . . . . . . . . . . . 2 . . . . . . . . . . . . . . Hunter 8 | . . . . . . . . . . . . . . . . . . . . . . . . . . . 2 3 . 3 . Programmer 34 | . . . . . . . . . . . . . . . . . 8 . . . 1 4 . . . 1 6 3 . 6 5 Heavy 1 | . . . . . . . . . . . . . . . . . 1 . . . . . . . . . . . . . . Behemoth 1 | . . . . . . . . . . . . . . . . . . . . . . . 1 . . . . . . . . Executioner 3 | . . . . . . . . . . . . . . . . . . . . . . . . . . . . . 1 . 2 Best Kill Streak 22 | 2 4 2 . . 9 1 . . . 1 3 . . . . 4 5 . 5 . 5 3 3 1 . 1 6 3 5 6 22 Combat Bots Only 20 | . 2 2 . . 8 . . . . 1 . . . . . 4 4 . 5 . 5 3 3 1 . 1 6 3 5 5 20 Max Kills in Single Turn 12 | 1 1 1 . . 1 1 . . . 1 1 . . . . 2 2 . 1 . 1 2 1 1 . 1 1 1 4 1 12 Gunslinging . | . . . . . . . . . . . . . . . . . . . . . . . . . . . . . . . . Exploded 10 | . . . . . . . . . . . . . . . . . . . . . . 1 . . . . . . 4 . 10 Melee 1 | . . . . . 1 . . . . 1 . . . . . . . . . . . . . . . 1 . . . . 1 Uniques/NPCs Destroyed . | . . . . . . . . . . . . . . . . . . . . . . . . . . . . . . . . Combat | -11 -10 -10 -10 -9 -8 -7 -7 -7 -7 -6 -6 -6 -6 -6 -6 -5 -5 -5 -5 -5 -4 -4 -4 -4 -4 -3 -3 -3 -2 -2 -2 -------- Run | Yrd Mat Min Exi Min Mat Fac Low Low Dat Pro Fac Low Low Zio Dee Pro Fac Upp Upp Zhi Pro Fac Upp Upp War Pro Res Qua Res Tes Sec Hostile Shots Fired 1977 | . 45 11 . . 34 1 12 9 . 43 42 4 . . 22 13 76 . 124 . 170 130 71 30 8 98 115 366 132 159 262 Missed 714 | . 10 2 . . 9 1 8 5 . 28 26 2 . . 16 6 23 . 42 . 45 47 17 7 1 39 41 122 50 58 109 Deflected 2 | . . . . . . . . . . . . . . . . . . . . . . . 2 . . . . . . . . Hits 1263 | . 35 9 . . 25 . 4 4 . 15 16 2 . . 6 7 53 . 82 . 125 83 54 23 7 59 74 244 82 101 153 Melee 38 | . . . . . . . . . . . . . . . . . . . 2 . 3 . . 3 . 1 . . 17 . 12 Projectile 1225 | . 35 9 . . 25 . 4 4 . 15 16 2 . . 6 7 53 . 80 . 122 83 54 20 7 58 74 244 65 101 141 AOE 2 | . . . . . . . . . . . . . . . . . 1 . . . . . . . . . . . 1 . . Critical Strikes 61 | . . . . . 1 . . . . . . . . . . . 5 . 2 . 4 6 2 3 1 2 4 12 4 3 12 Actively Blocked 39 | . . . . . . . . . . . . . . . . . 1 . . . 3 6 2 3 1 2 2 8 4 3 4 Part Disruptions 5 | . . . . . . . . . . . . . . . . . . . . . . . . . . . 2 2 . . 1 Damage Taken 23527 | . 355 76 . . 415 . 119 40 . 170 157 27 . . 211 134 1265 . 1405 . 2289 1392 657 281 82 778 1605 4281 2431 2280 3077 Core 3707 | . 126 29 . . 130 . 17 12 . 68 35 . . . 52 18 208 . 122 . 304 85 20 20 . 144 323 582 560 340 512 Absorbed by Shields 1900 | . . . . . . . . . . . . . . . . . . . . . . . 562 234 79 535 . . 412 78 . Redirected to Shielding 367 | . . . . . . . . . . 3 26 . . . 27 . 50 . 21 . 35 . . . . . 16 88 . 101 . Ignored by Resistances 1580 | . . . . . . . . . . . . . . . . . . . . . . 300 144 . . . . . . . 1136 Regen/Repaired (Parts) 832 | . 18 . . . . 16 . . . . 115 . . . . . . . . . . . . . 203 . 87 346 47 . . Core Remaining (%) 66 | 100 . . . 38 76 . . . . 86 . . . . . 87 . . . . 36 . . . . 76 . 30 . . . Volleys Fired 709 | 4 37 9 . . 18 . . . . . . . . . . 6 73 1 46 . 41 53 30 10 7 7 64 59 62 76 106 Largest 3 | 2 2 2 . . 2 . . . . . . . . . . 2 2 1 2 . 2 2 2 2 2 2 3 3 2 3 3 Hottest 323 | 60 60 46 . . 46 . . . . . . . . . . 50 50 25 50 . 50 88 110 210 140 140 312 323 240 232 200 Shots Fired 1243 | 8 63 18 . . 30 . . . . . . . . . . 12 122 1 88 . 80 98 59 17 14 13 152 107 97 139 125 Gun 415 | 8 63 18 . . 30 . . . . . . . . . . . . . . . . 8 48 5 7 6 57 30 20 32 83 Cannon 823 | . . . . . . . . . . . . . . . . 12 122 1 88 . 80 90 11 12 7 7 95 77 76 107 38 Launcher 5 | . . . . . . . . . . . . . . . . . . . . . . . . . . . . . 1 . 4 Special . | . . . . . . . . . . . . . . . . . . . . . . . . . . . . . . . . Kinetic 312 | 4 60 18 . . 30 . . . . . . . . . . . . . . . . . 17 5 7 6 . 20 38 90 17 Thermal 894 | . . . . . . . . . . . . . . . . 12 122 1 88 . 80 98 42 12 7 7 152 83 55 49 86 Explosive 5 | . . . . . . . . . . . . . . . . . . . . . . . . . . . . . 1 . 4 Electromagnetic 14 | 4 3 . . . . . . . . . . . . . . . . . . . . . . . . . . 4 3 . . Slashing 18 | . . . . . . . . . . . . . . . . . . . . . . . . . . . . . . . 18 Robot Hit Streak 24 | 3 11 11 . . 16 . . . . . . . . . . 7 24 . 18 . 12 19 19 8 10 2 16 14 12 9 23 Robot Miss Streak 8 | 2 4 8 . . 1 . . . . . . . . . . 2 3 . 2 . 2 2 2 2 1 2 4 4 4 6 2 Penetration Max 1 | . . . . . . . . . . . . . . . . . . . . . . . . 1 . . . . . 1 1 Secondary Targets 2 | . 1 1 . . . . . . . . . . . . . . . . . . . . . . . . . . . . . Max Gunslinging Chain 1 | . 1 1 . . . . . . . . . . . . . . . . . . . . . . . . . . . . . Shots Hit Robots 729 | 5 43 6 . . 44 1 . . . 1 10 . . . 1 8 75 . 56 . 42 71 45 11 12 6 85 71 53 55 28 Core Hits 357 | 2 19 2 . . 20 . . . . . 4 . . . . 5 28 . 20 . 18 36 16 6 3 2 32 23 18 25 78 Critical Kills 19 | . . . . . . . . . . . . . . . . . . . . . . . . . . . . 2 2 12 3 Critical Parts Destroyed 17 | . . . . . . . . . . . . . . . . . . . . . . . . . . . . . 1 12 4 Critical Strikes 54 | . . . . . 1 . . . . . 1 . . . . . . . . . . . 2 . . . . 3 16 24 7 Burn 2 | . . . . . . . . . . . . . . . . . . . . . . . 2 . . . . . . . . Meltdown 2 | . . . . . . . . . . . . . . . . . . . . . . . . . . . . 2 . . . Destroy 46 | . . . . . . . . . . . . . . . . . . . . . . . . . . . . . 15 24 7 Blast 1 | . . . . . . . . . . . . . . . . . . . . . . . . . . . . 1 . . . Corrupt 1 | . . . . . . . . . . . . . . . . . . . . . . . . . . . . . 1 . . Impale 2 | . . . . . 1 . . . . . 1 . . . . . . . . . . . . . . . . . . . . Melee Attacks 136 | . 3 . . . 26 12 11 6 . 12 55 5 4 . 2 . . . . . . . . . . . . . . . . Impact 3 | . 3 . . . . . . . . . . . . . . . . . . . . . . . . . . . . . . Slashing . | . . . . . . . . . . . . . . . . . . . . . . . . . . . . . . . . Piercing 133 | . . . . . 26 12 11 6 . 12 55 5 4 . 2 . . . . . . . . . . . . . . . . Sneak Attacks 14 | . . . . . 7 1 . . . . 6 . . . . . . . . . . . . . . . . . . . . Combat Hostiles . | . . . . . . . . . . . . . . . . . . . . . . . . . . . . . . . . Follow-up Attacks . | . . . . . . . . . . . . . . . . . . . . . . . . . . . . . . . . Damage Inflicted 35704 | 102 588 77 . . 1194 92 . . . 36 508 . . . 80 422 3927 . 2673 . 2312 3370 1270 425 377 235 3216 2644 1819 1532 8805 Guns 6754 | 60 588 77 . . 411 . . . . . . . . . . . . . . . . 81 833 105 154 120 1204 741 139 555 1686 Cannons 19776 | . . . . . . . . . . . . . . . . 422 3779 . 2673 . 2312 3250 437 320 223 92 2004 1882 1188 977 217 Explosions 7552 | 42 . . . . . . . . . . . . . . . . 148 . . . . 38 . . . . . . 492 . 6832 Melee 1499 | . . . . . 783 92 . . . 36 508 . . . 80 . . . . . . . . . . . . . . . . Ramming 123 | . . . . . . . . . . . . . . . . . . . . . . 1 . . . 23 8 21 . . 70 Kinetic 3890 | 17 578 77 . . 411 . . . . . . . . . . . . . . . . . 308 105 154 120 . 562 347 883 328 Thermal 22261 | 42 . . . . . . . . . . . . . . . 422 3927 . 2673 . 2312 3331 962 320 223 92 3208 2030 909 649 1161 Explosive 7324 | . . . . . . . . . . . . . . . . . . . . . . . . . . . . . 492 . 6832 Electromagnetic 193 | 43 10 . . . . . . . . . . . . . . . . . . . . 38 . . . . . 31 71 . . Impact . | . . . . . . . . . . . . . . . . . . . . . . . . . . . . . . . . Slashing 414 | . . . . . . . . . . . . . . . . . . . . . . . . . . . . . . . 414 Piercing 1499 | . . . . . 783 92 . . . 36 508 . . . 80 . . . . . . . . . . . . . . . . Highest Corruption 15 | . . . . . 1 . 4 4 4 4 . . . 4 . . 4 4 4 . 1 9 9 9 9 1 6 15 . 6 6 Average Corruption 4 | . . . . . 1 . 4 4 4 4 . . . 4 . . 3 4 3 . 1 8 9 9 9 1 2 7 . 2 6 Corruption Purged 4 | . . . . . . . . . . . . . . . . . . . 4 . . . . . . . . . . . . Corruption Blocked . | . . . . . . . . . . . . . . . . . . . . . . . . . . . . . . . . Effects 149 | . . . . . 3 . 1 3 . 6 . . . 3 . . 11 5 26 . 1 7 22 14 1 1 4 26 . 12 3 Message Errors 33 | . . . . . 1 . . 2 . 2 . . . . . . 3 . 6 . 1 1 4 1 1 . 1 6 . 3 1 Matter Fused 36 | . . . . . 1 . 1 . . 1 . . . . . . 4 1 4 . . 3 2 7 . . 3 6 . 3 . Heat Flow Errors 16 | . . . . . . . . . . . . . . 2 . . . 2 4 . . 1 4 3 . . . . . . . Energy Discharges 16 | . . . . . 1 . . . . 3 . . . . . . 1 1 4 . . 1 3 1 . . . 1 . . . Parts Rejected 2 | . . . . . . . . . . . . . . . . . . . 1 . . . . . . . . . . 1 . Parts Fused 1 | . . . . . . . . . . . . . . . . . . . . . . . . . . . . 1 . . . Data Loss (minor) 23 | . . . . . . . . 1 . . . . . 1 . . 1 1 5 . . . 2 1 . 1 . 6 . 3 1 Data Loss (major) 3 | . . . . . . . . . . . . . . . . . . . . . . . 2 . . . . 1 . . . Misfires 9 | . . . . . . . . . . . . . . . . . 2 . . . . 1 4 . . . . 1 . . 1 Alerts 5 | . . . . . . . . . . . . . . . . . . . 1 . . . 1 . . . . 2 . 1 . Weapon Failures 5 | . . . . . . . . . . . . . . . . . . . 1 . . . . 1 . . . 2 . 1 . Overload Shots 6 | . . . . . . . . . . . . . . . . . . . . . . . . . . . . 6 . . . Overflow Damage 1524 | 12 . . . . 68 62 . . . 16 81 . . . 76 . 190 . 150 . 246 45 31 14 . . 80 33 2 2 416 Projectiles 791 | . . . . . . . . . . . . . . . . . 190 . 150 . 246 45 31 14 . . 80 33 . 2 . Explosions 430 | 12 . . . . . . . . . . . . . . . . . . . . . . . . . . . . 2 . 416 Melee 303 | . . . . . 68 62 . . . 16 81 . . . 76 . . . . . . . . . . . . . . . . Knockbacks 15 | . . . . . . . . . . . . . . . . . . . . . . . . . . . . 6 . 9 . Impact . | . . . . . . . . . . . . . . . . . . . . . . . . . . . . . . . . Kinetic 14 | . . . . . . . . . . . . . . . . . . . . . . . . . . . . 6 . 8 . Secondary 1 | . . . . . . . . . . . . . . . . . . . . . . . . . . . . . . 1 . Self-Inflicted Damage 193 | . . . . . . . . . . . . . . . . . 34 . . . . 23 . . . . . . . . 136 Shots 5 | . . . . . . . . . . . . . . . . . 2 . . . . 1 . . . . . . . . 2 Rammed . | . . . . . . . . . . . . . . . . . . . . . . . . . . . . . . . . Targets Rammed 8 | . . . . . . . . . . . . . . . . . . . . . . 1 . . . 1 1 3 . . 2 Kicked 8 | . . . . . . . . . . . . . . . . . . . . . . 1 . . . 1 1 3 . . 2 Crushed . | . . . . . . . . . . . . . . . . . . . . . . . . . . . . . . . . Highest Temperature 480 | 20 18 4 . . 32 . . 1 . . 14 . . 182 216 14 . 97 251 . 1 342 205 261 . . 208 . 480 22 64 Average Temperature 68 | 10 7 2 . . 8 . . 1 . . 4 . . 87 95 6 . 48 107 . 1 106 62 67 . . 83 . 72 14 11 Received Heat Transfer 3121 | . 96 . . . 198 . 18 18 . 36 63 . . . 30 63 210 . 363 . 258 432 100 48 4 32 36 549 252 144 171 Effects 3 | . . . . . . . . . . . . . . . . . . . . . . . . . . . . . 3 . . Shutdowns 1 | . . . . . . . . . . . . . . . . . . . . . . . . . . . . . 1 . . Energy Bleed 1 | . . . . . . . . . . . . . . . . . . . . . . . . . . . . . 1 . . Damage (minor) 1 | . . . . . . . . . . . . . . . . . . . . . . . . . . . . . 1 . . Siege Activations . | . . . . . . . . . . . . . . . . . . . . . . . . . . . . . . . . Martial Activations . | . . . . . . . . . . . . . . . . . . . . . . . . . . . . . . . . Shielding Activations 1 | . . . . . . . . . . . . . . . . . . . . . . . 1 . . . . . . . . Total Turns 17 | . . . . . . . . . . . . . . . . . . . . . . . 17 . . . . . . . . Longest Duration 17 | . . . . . . . . . . . . . . . . . . . . . . . 17 . . . . . . . . Robots Disrupted 1 | . . . . . . . . . . . . . . . . . . . . . . 1 . . . . . . . . . Combat Hostiles 1 | . . . . . . . . . . . . . . . . . . . . . . 1 . . . . . . . . . Robots Corrupted . | . . . . . . . . . . . . . . . . . . . . . . . . . . . . . . . . Combat Hostiles . | . . . . . . . . . . . . . . . . . . . . . . . . . . . . . . . . Parts Fried . | . . . . . . . . . . . . . . . . . . . . . . . . . . . . . . . . Impact Corruptions . | . . . . . . . . . . . . . . . . . . . . . . . . . . . . . . . . Robots Melted 3 | . . . . . . . . . . . . . . . . . . . . . . . . . . . 1 2 . . . Combat Hostiles 3 | . . . . . . . . . . . . . . . . . . . . . . . . . . . 1 2 . . . Parts Melted 26 | . . . . . . . . . . . . . . . . . 2 . 2 . 1 3 . . . . 11 3 . 2 2 Heat Transferred 17090 | 50 . . . . . . . . . . . . . . . 225 2025 . 1450 . 1075 1898 1298 333 222 74 3367 2150 777 629 1517 Parts Sabotaged . | . . . . . . . . . . . . . . . . . . . . . . . . . . . . . . . . Parts Stolen . | . . . . . . . . . . . . . . . . . . . . . . . . . . . . . . . . Parts Stripped . | . . . . . . . . . . . . . . . . . . . . . . . . . . . . . . . . Power Chain Reactions 1 | 1 . . . . . . . . . . . . . . . . . . . . . . . . . . . . . . . Alert | -11 -10 -10 -10 -9 -8 -7 -7 -7 -7 -6 -6 -6 -6 -6 -6 -5 -5 -5 -5 -5 -4 -4 -4 -4 -4 -3 -3 -3 -2 -2 -2 ------- Run | Yrd Mat Min Exi Min Mat Fac Low Low Dat Pro Fac Low Low Zio Dee Pro Fac Upp Upp Zhi Pro Fac Upp Upp War Pro Res Qua Res Tes Sec Maximum Alert Level 5 | . . . . . . . . . . . 3 . . . . . 2 . . . . 2 . . . . 1 . 1 1 5 Low Security (%) 69 | 100 100 100 . 100 100 100 . . . . . . . . . . 69 . . . . 57 . . . . 84 100 76 42 88 Level 1 19 | . . . . . . . . . . . 26 . . . . . 26 . . . . 26 . . . . 15 . 23 57 . Level 2 7 | . . . . . . . . . . . 55 . . . . . 4 . . . . 16 . . . . . . . . . Level 3 1 | . . . . . . . . . . . 18 . . . . . . . . . . . . . . . . . . . . Level 4 . | . . . . . . . . . . . . . . . . . . . . . . . . . . . . . . . . Level 5 . | . . . . . . . . . . . . . . . . . . . . . . . . . . . . . . . . High Security . | . . . . . . . . . . . . . . . . . . . . . . . . . . . . . . . . Max Security 1 | . . . . . . . . . . . . . . . . . . . . . . . . . . . . . . . 11 Peak Influence 2625 | 10 89 68 . . 118 88 . . . . 959 . . . . . 408 . . . . 510 . . . . 277 144 251 304 2625 Initial 953 | . 6 25 . . . 60 . . . . 953 . . . . . 32 . . . . 9 . . . . 33 144 8 21 132 Average 186 | 3 41 24 . . 57 58 . . . . 582 . . . . . 144 . . . . 188 . . . . 92 75 134 190 309 Influence Increases 9976 | 10 303 88 . . 386 134 180 . . 170 1392 60 . . . 90 942 . 495 . 380 831 120 250 60 150 642 410 695 670 1518 Destroy 0b10 Robot/C 3760 | . 140 40 . . 180 . . . . 20 . . . . . 80 420 . 340 . 320 340 100 40 . 20 400 220 160 360 580 Destroy 0b10 Robot/NC 235 | 10 20 . . . 35 5 . . . . 35 . . . . . 15 . 5 . . 20 . . . . 10 5 25 10 40 Destroy Leader 628 | . 34 10 . . 32 . . . . . . . . . . 10 90 . 30 . 30 70 20 . . 10 80 30 34 52 96 Allied During Kill 48 | . . 8 . . 11 . . . . . . . . . . . . . . . . . . . . . 29 . . . . Successful Hack 159 | . 45 . . . 4 17 . . . . 25 . . . . . 32 . . . . . . . . . 6 21 . 2 7 Select Force Hacks 90 | . 30 . . . 30 . . . . . 30 . . . . . . . . . . . . . . . . . . . . Disable Machine 735 | . . . . . 15 15 . . . . 15 . . . . . 165 . . . . 90 . . . . 30 75 15 90 225 Anti-Garrison Action 400 | . . . . . . . . . . . . . . . . . . . . . . 200 . . . . . . 200 . . Destroy Structure 771 | . 4 . . . 4 7 . . . . 42 . . . . . 190 . . . . 36 . . . . 72 44 141 96 135 Advance Influence 900 | . . . . . . . . . . . 900 . . . . . . . . . . . . . . . . . . . . Partial Spotted 255 | . . 15 . . . 30 . . . . 105 . . . . . . . . . . . . . . . . . 15 60 30 Lose Combat Pursuer 1995 | . 30 15 . . 75 60 180 . . 150 240 60 . . . . 30 . 120 . 30 75 . 210 60 120 15 15 105 . 405 Influence Decreases 8874 | . 246 137 18 . 253 203 125 73 46 85 1064 303 63 107 . 38 590 331 529 39 365 381 447 217 187 144 435 652 672 473 651 Entered New Map 1459 | . 4 42 18 . . 73 25 23 46 . 32 153 33 107 . . 20 151 15 39 . 6 173 27 171 44 17 113 7 17 103 Time Decay 5661 | . 232 95 . . 156 130 60 40 . 75 422 150 30 . . 38 560 180 474 . 275 325 254 180 16 60 318 302 535 356 398 Search Patrol Dispatched 300 | . . . . . . . . . . . 300 . . . . . . . . . . . . . . . . . . . . Lost Part 967 | . 10 . . . 30 . 20 10 . 10 10 . . . . . 10 . 40 . 90 30 20 10 . 40 40 237 130 80 150 Lost Ally 187 | . . . . . 67 . 20 . . . . . . . . . . . . . . 20 . . . . 60 . . 20 . Purge Threat 300 | . . . . . . . . . . . 300 . . . . . . . . . . . . . . . . . . . . Squads Dispatched 80 | . 1 . . . 4 5 . . . 1 7 . . . . . 13 . . . 1 6 . 1 . . 5 5 2 4 25 Investigation 26 | . 1 . . . 3 3 . . . . 4 . . . . . 4 . . . . 3 . . . . 1 2 2 1 2 Extermination 17 | . . . . . . 1 . . . . 2 . . . . . 4 . . . . 2 . . . . 2 1 . 2 3 Reinforcement 19 | . . . . . 1 1 . . . . 1 . . . . . 5 . . . . 1 . . . . 2 2 . 1 5 Assault 15 | . . . . . . . . . . 1 . . . . . . . . . . 1 . . 1 . . . . . . 12 Garrison . | . . . . . . . . . . . . . . . . . . . . . . . . . . . . . . . . Intercept 3 | . . . . . . . . . . . . . . . . . . . . . . . . . . . . . . . 3 Searches Triggered 2 | . . . . . . . . . . . 2 . . . . . . . . . . . . . . . . . . . . Data Miner Redirects 3 | . . . . . . . . . . . . . . . . . . . . . . . . . . . . 1 . . 2 Construction Impeded 2 | . . . . . . . . . . . . . . . . . . . . . . . . . . . 2 . . . . Haulers Reinforced 1 | . . . . . . . . . . . . . . . . . 1 . . . . . . . . . . . . . . Active Scanning Responses . | . . . . . . . . . . . . . . . . . . . . . . . . . . . . . . . . Cargo Convoy Interrupts 1 | . . . . . . . . . . . . . . . . . 1 . . . . . . . . . . . . . . Stealth | -11 -10 -10 -10 -9 -8 -7 -7 -7 -7 -6 -6 -6 -6 -6 -6 -5 -5 -5 -5 -5 -4 -4 -4 -4 -4 -3 -3 -3 -2 -2 -2 --------- Run | Yrd Mat Min Exi Min Mat Fac Low Low Dat Pro Fac Low Low Zio Dee Pro Fac Upp Upp Zhi Pro Fac Upp Upp War Pro Res Qua Res Tes Sec Distress Signals 15 | . . . . . 2 . . . . . 1 . . . . . 1 . . . . 2 . . . . 3 1 2 2 1 Communications Jammed . | . . . . . . . . . . . . . . . . . . . . . . . . . . . . . . . . Distress Signals . | . . . . . . . . . . . . . . . . . . . . . . . . . . . . . . . . Times Spotted 569 | . 14 3 . . 22 8 10 1 . 28 22 4 . . 32 4 27 . 20 . 26 23 5 17 33 22 24 34 28 40 122 Peak Tracking Total 59 | . 4 3 . . 8 4 8 1 . 16 9 4 . . 41 4 4 . 9 . 8 8 3 13 10 16 5 5 5 6 59 Tactical Retreats 72 | . 1 1 . . 3 3 3 . . 5 7 1 . . 1 . 2 . 2 . 2 4 . 4 2 4 2 7 6 8 4 Traps | -11 -10 -10 -10 -9 -8 -7 -7 -7 -7 -6 -6 -6 -6 -6 -6 -5 -5 -5 -5 -5 -4 -4 -4 -4 -4 -3 -3 -3 -2 -2 -2 ------- Run | Yrd Mat Min Exi Min Mat Fac Low Low Dat Pro Fac Low Low Zio Dee Pro Fac Upp Upp Zhi Pro Fac Upp Upp War Pro Res Qua Res Tes Sec Traps Triggered 10 | . . . . . . . . . . . . . . . . . . . . . . 1 . . . . 1 2 . 1 5 Indirectly . | . . . . . . . . . . . . . . . . . . . . . . . . . . . . . . . . Trap Hack Attempts . | . . . . . . . . . . . . . . . . . . . . . . . . . . . . . . . . Triggered . | . . . . . . . . . . . . . . . . . . . . . . . . . . . . . . . . Disarmed . | . . . . . . . . . . . . . . . . . . . . . . . . . . . . . . . . Reprogrammed . | . . . . . . . . . . . . . . . . . . . . . . . . . . . . . . . . Reused . | . . . . . . . . . . . . . . . . . . . . . . . . . . . . . . . . Traps Extracted . | . . . . . . . . . . . . . . . . . . . . . . . . . . . . . . . . Installed . | . . . . . . . . . . . . . . . . . . . . . . . . . . . . . . . . Triggered . | . . . . . . . . . . . . . . . . . . . . . . . . . . . . . . . . Machines | -11 -10 -10 -10 -9 -8 -7 -7 -7 -7 -6 -6 -6 -6 -6 -6 -5 -5 -5 -5 -5 -4 -4 -4 -4 -4 -3 -3 -3 -2 -2 -2 ---------- Run | Yrd Mat Min Exi Min Mat Fac Low Low Dat Pro Fac Low Low Zio Dee Pro Fac Upp Upp Zhi Pro Fac Upp Upp War Pro Res Qua Res Tes Sec Machines Disabled 53 | . . . . . 1 1 . . . . 1 . 1 . 1 . 11 . . . . 6 . . . . 2 5 1 7 16 Max in Single Turn 4 | . . . . . 1 1 . . . . 1 . 1 . 1 . 3 . . . . 4 . . . . 1 1 1 1 2 Garrison Access 8 | . . . . . . . . . . . 4 . . . . . . . . . . 2 . . . . 1 . 1 . . Machines Repaired . | . . . . . . . . . . . . . . . . . . . . . . . . . . . . . . . . Machines Dismantled . | . . . . . . . . . . . . . . . . . . . . . . . . . . . . . . . . Machines Sabotaged . | . . . . . . . . . . . . . . . . . . . . . . . . . . . . . . . . Overloaded Fab Kills . | . . . . . . . . . . . . . . . . . . . . . . . . . . . . . . . . Hacking | -11 -10 -10 -10 -9 -8 -7 -7 -7 -7 -6 -6 -6 -6 -6 -6 -5 -5 -5 -5 -5 -4 -4 -4 -4 -4 -3 -3 -3 -2 -2 -2 --------- Run | Yrd Mat Min Exi Min Mat Fac Low Low Dat Pro Fac Low Low Zio Dee Pro Fac Upp Upp Zhi Pro Fac Upp Upp War Pro Res Qua Res Tes Sec Machines Accessed 103 | . 10 1 1 . 6 9 . . 4 . 20 . . . . . 13 . . 4 . 3 1 1 7 1 6 3 2 4 7 Terminals 44 | . 8 . . . 4 5 . . . . 7 . . . . . 7 . . . . . . . . 1 3 1 . 1 7 Fabricators 11 | . . . . . . 2 . . . . 4 . . . . . 3 . . . . 1 . . . . 1 . . . . Repair Stations 8 | . 1 . . . . 1 . . . . 3 . . . . . . . . . . . . . . . 1 1 . 1 . Recycling Units 2 | . 1 . . . 1 . . . . . . . . . . . . . . . . . . . . . . . . . . Scanalyzers 10 | . . . . . 1 1 . . . . 2 . . . . . 3 . . . . . . . . . . 1 . 2 . Garrison Access 9 | . . . . . . . . . . . 4 . . . . . . . . . . 2 . . . . 1 . 2 . . Total Hacks 317 | . 26 1 1 . 23 31 . . 30 . 67 . . . . . 44 . . 17 . 7 1 1 17 1 8 17 6 5 14 Successful 223 | . 18 1 1 . 15 20 . . 30 . 47 . . . . . 29 . . 17 . 4 1 1 17 1 4 8 1 1 7 Failed 94 | . 8 . . . 8 11 . . . . 20 . . . . . 15 . . . . 3 . . . . 4 9 5 4 7 Catastrophic 14 | . 2 . . . . 3 . . . . 2 . . . . . 2 . . . . . . . . . 1 1 2 1 . Database Lockouts . | . . . . . . . . . . . . . . . . . . . . . . . . . . . . . . . . Manual 144 | . 22 . . . 18 18 . . . . 32 . . 4 . . 29 . . . . 1 . . 1 . 6 3 3 3 4 Terminals 150 | . 23 . . . 18 18 . . . . 35 . . . . . 31 . . . . . . . . 1 5 3 . 2 14 Fabricators 24 | . . . . . . 5 . . . . 9 . . . . . 6 . . . . 3 . . . . 1 . . . . Repair Stations 33 | . 2 . . . . 4 . . . . 14 . . . . . . . . . . . . . . . 1 11 . 1 . Recycling Units 2 | . 1 . . . 1 . . . . . . . . . . . . . . . . . . . . . . . . . . Scanalyzers 24 | . . . . . 4 4 . . . . 4 . . . . . 7 . . . . . . . . . . 3 . 2 . Garrison Access 16 | . . . . . . . . . . . 5 . . . . . . . . . . 4 . . . . 1 . 6 . . Terminal Hacks 103 | . 4 1 1 . 5 3 . . 30 . 11 . . . . . 6 . . 17 . . 1 1 17 1 . 1 . . 4 Record 27 | . . . 1 . . . . . 11 . . . . . . . . . . 5 . . . . 10 . . . . . . Part Schematic 21 | . . . . . . 1 . . 12 . 3 . . . . . 1 . . 4 . . . . . . . . . . . Robot Schematic 4 | . . . . . . . . . 4 . . . . . . . . . . . . . . . . . . . . . . Robot Analysis 7 | . 1 . . . 2 . . . . . . . . . . . . . . 4 . . . . . . . . . . . Prototype ID Bank 14 | . 1 . . . . . . . 3 . . . . . . . . . . 4 . . . . 5 . . 1 . . . Open Door 10 | . . 1 . . . . . . . . . . . . . . . . . . . . 1 1 2 1 . . . . 4 Branch Access Points 2 | . . . . . . 1 . . . . . . . . . . 1 . . . . . . . . . . . . . . Terminal Index 4 | . 1 . . . . 1 . . . . 1 . . . . . 1 . . . . . . . . . . . . . . Fabricator Index 1 | . . . . . . . . . . . 1 . . . . . . . . . . . . . . . . . . . . Scanalyzer Index 1 | . . . . . . . . . . . . . . . . . 1 . . . . . . . . . . . . . . Alert Level 1 | . . . . . 1 . . . . . . . . . . . . . . . . . . . . . . . . . . Unreport Threat 2 | . . . . . . . . . . . 2 . . . . . . . . . . . . . . . . . . . . Recall Extermination 1 | . . . . . . . . . . . 1 . . . . . . . . . . . . . . . . . . . . Registered Components 2 | . . . . . 1 . . . . . . . . . . . 1 . . . . . . . . . . . . . . Registered Prototypes 1 | . . . . . . . . . . . 1 . . . . . . . . . . . . . . . . . . . . Zone Layout 5 | . 1 . . . 1 . . . . . 2 . . . . . 1 . . . . . . . . . . . . . . Fabricator Hacks 17 | . . . . . . 4 . . . . 6 . . . . . 5 . . . . 2 . . . . . . . . . Network Status 1 | . . . . . . 1 . . . . . . . . . . . . . . . . . . . . . . . . . Load Schematic 10 | . . . . . . 2 . . . . 4 . . . . . 3 . . . . 1 . . . . . . . . . Build 6 | . . . . . . 1 . . . . 2 . . . . . 2 . . . . 1 . . . . . . . . . Repair Station Hacks 18 | . 2 . . . . 3 . . . . 10 . . . . . . . . . . . . . . . . 3 . . . Scan Component 11 | . 1 . . . . 2 . . . . 6 . . . . . . . . . . . . . . . . 2 . . . Repair 7 | . 1 . . . . 1 . . . . 4 . . . . . . . . . . . . . . . . 1 . . . Recycling Unit Hacks . | . . . . . . . . . . . . . . . . . . . . . . . . . . . . . . . . Scanalyzer 17 | . . . . . 4 4 . . . . 2 . . . . . 4 . . . . . . . . . . 2 . 1 . Insert Component 11 | . . . . . 2 2 . . . . 1 . . . . . 3 . . . . . . . . . . 2 . 1 . Analyze 6 | . . . . . 2 2 . . . . 1 . . . . . 1 . . . . . . . . . . . . . . Garrison Access Hacks 6 | . . . . . . . . . . . 4 . . . . . . . . . . 1 . . . . 1 . . . . Seal Access 6 | . . . . . . . . . . . 4 . . . . . . . . . . 1 . . . . 1 . . . . Unauthorized Hacks 62 | . 12 . . . 6 6 . . . . 14 . . . . . 14 . . . . 1 . . . . 3 2 1 . 3 Terminals 49 | . 11 . . . 5 5 . . . . 10 . . . . . 13 . . . . . . . . . 1 1 . . 3 Track 4 | . . . . . 1 . . . . . . . . . . . 1 . . . . . . . . . 1 . . . 1 Assimilate 5 | . 1 . . . . 3 . . . . . . . . . . 1 . . . . . . . . . . . . . . Botnet 20 | . 4 . . . 2 1 . . . . 5 . . . . . 5 . . . . . . . . . . 1 . . 2 Operators 2 | . 1 . . . . . . . . . . . . . . . 1 . . . . . . . . . . . . . . Skim 18 | . 5 . . . 2 1 . . . . 5 . . . . . 5 . . . . . . . . . . . . . . Fabricators 5 | . . . . . . 1 . . . . 2 . . . . . 1 . . . . . . . . . 1 . . . . Liberate 1 | . . . . . . . . . . . . . . . . . . . . . . . . . . . 1 . . . . Recompile 4 | . . . . . . 1 . . . . 2 . . . . . 1 . . . . . . . . . . . . . . Repair Stations 3 | . . . . . . . . . . . 1 . . . . . . . . . . . . . . . 1 1 . . . Patch 3 | . . . . . . . . . . . 1 . . . . . . . . . . . . . . . 1 1 . . . Recycling Units 2 | . 1 . . . 1 . . . . . . . . . . . . . . . . . . . . . . . . . . Tunnel 2 | . 1 . . . 1 . . . . . . . . . . . . . . . . . . . . . . . . . . Scanalyzers 1 | . . . . . . . . . . . 1 . . . . . . . . . . . . . . . . . . . . Extract 1 | . . . . . . . . . . . 1 . . . . . . . . . . . . . . . . . . . . Garrison Access 2 | . . . . . . . . . . . . . . . . . . . . . . 1 . . . . . . 1 . . Jam 2 | . . . . . . . . . . . . . . . . . . . . . . 1 . . . . . . 1 . . Data Cores Recovered 3 | . . . . . . . . . . . 1 . . . . . . . . . . 1 . . . . 1 . . . . Used 1 | . . . . . . . . . . . . . . . . . . . . . . . . . . . 1 . . . . Hacking Detections 61 | . 9 . . . 5 7 . . . . 11 . . . . . 11 . . . . 2 . . . . 4 1 2 4 5 Full Trace Events 13 | . . . . . 3 2 . . . . . . . . . . 3 . . . . 1 . . . . . . 1 1 2 Feedback Events 1 | . . . . . 1 . . . . . . . . . . . . . . . . . . . . . . . . . . Corruption 1 | . . . . . 1 . . . . . . . . . . . . . . . . . . . . . . . . . . Feedback Blocked . | . . . . . . . . . . . . . . . . . . . . . . . . . . . . . . . . Robot Schematics Acquired 7 | . . . . . . . . . 4 . . . . 3 . . . . . . . . . . . . . . . . . Robots Built . | . . . . . . . . . . . . . . . . . . . . . . . . . . . . . . . . Authchips . | . . . . . . . . . . . . . . . . . . . . . . . . . . . . . . . . Time . | . . . . . . . . . . . . . . . . . . . . . . . . . . . . . . . . Total Robot Build Rating . | . . . . . . . . . . . . . . . . . . . . . . . . . . . . . . . . Part Schematics Acquired 42 | . . . . . 2 3 . . 12 . 6 . . 14 . . 1 . . 4 . . . . . . . . . . . Parts Built 11 | . . . . . . 2 . . . . 4 . . . . . 3 . . . . 2 . . . . . . . . . Authchips 4 | . . . . . . 1 . . . . 2 . . . . . 1 . . . . . . . . . . . . . . Time 302 | . . . . . . 20 . . . . 78 . . . . . 157 . . . . 47 . . . . . . . . . Total Part Build Rating 45 | . . . . . . 4 . . . . 14 . . . . . 17 . . . . 10 . . . . . . . . . Parts Repaired 7 | . 1 . . . . 1 . . . . 4 . . . . . . . . . . . . . . . . 1 . . . Time 190 | . 13 . . . . 26 . . . . 108 . . . . . . . . . . . . . . . . 43 . . . Parts Recycled . | . . . . . . . . . . . . . . . . . . . . . . . . . . . . . . . . Recycled Matter . | . . . . . . . . . . . . . . . . . . . . . . . . . . . . . . . . Retrieved Matter . | . . . . . . . . . . . . . . . . . . . . . . . . . . . . . . . . Retrieved Components . | . . . . . . . . . . . . . . . . . . . . . . . . . . . . . . . . Parts Scanalyzed 6 | . . . . . 2 2 . . . . 1 . . . . . 1 . . . . . . . . . . . . . . Part Schematics Acquired 6 | . . . . . 2 2 . . . . 1 . . . . . 1 . . . . . . . . . . . . . . Parts Damaged . | . . . . . . . . . . . . . . . . . . . . . . . . . . . . . . . . Bothacking | -11 -10 -10 -10 -9 -8 -7 -7 -7 -7 -6 -6 -6 -6 -6 -6 -5 -5 -5 -5 -5 -4 -4 -4 -4 -4 -3 -3 -3 -2 -2 -2 ------------ Run | Yrd Mat Min Exi Min Mat Fac Low Low Dat Pro Fac Low Low Zio Dee Pro Fac Upp Upp Zhi Pro Fac Upp Upp War Pro Res Qua Res Tes Sec Used RIF Installer . | . . . . . . . . . . . . . . . . . . . . . . . . . . . . . . . . Robots Hacked . | . . . . . . . . . . . . . . . . . . . . . . . . . . . . . . . . Non-combat . | . . . . . . . . . . . . . . . . . . . . . . . . . . . . . . . . Combat . | . . . . . . . . . . . . . . . . . . . . . . . . . . . . . . . . Robot Hacks Applied . | . . . . . . . . . . . . . . . . . . . . . . . . . . . . . . . . Relay Couplers Released . | . . . . . . . . . . . . . . . . . . . . . . . . . . . . . . . . Fabnet Peak Effective % . | . . . . . . . . . . . . . . . . . . . . . . . . . . . . . . . . Robots Rewired 1 | . . . . . . . . . . . . . . . . . . . . . . . . . . . . . . 1 . Allies Hacked . | . . . . . . . . . . . . . . . . . . . . . . . . . . . . . . . . Hacks Repelled . | . . . . . . . . . . . . . . . . . . . . . . . . . . . . . . . . Allies | -11 -10 -10 -10 -9 -8 -7 -7 -7 -7 -6 -6 -6 -6 -6 -6 -5 -5 -5 -5 -5 -4 -4 -4 -4 -4 -3 -3 -3 -2 -2 -2 -------- Run | Yrd Mat Min Exi Min Mat Fac Low Low Dat Pro Fac Low Low Zio Dee Pro Fac Upp Upp Zhi Pro Fac Upp Upp War Pro Res Qua Res Tes Sec Total Allies 15 | . 1 3 . . . 2 . . . . . . . 5 . . . . . . . . . . . . 3 . . 1 . Largest Group 5 | . 1 4 4 4 4 2 2 . . . . . . 5 5 . . . . . . . . . . . 3 . . 1 . Highest-Rated Group 148 | . 10 50 50 50 50 36 36 . . . . . . 126 126 . . . . . . . . . . . 141 . . 148 . Highest-Rated Ally 148 | . 10 16 16 16 16 26 26 . . . . . . 31 31 . . . . . . . . . . . 47 . . 148 . Total Orders 3 | . 2 . . . . . . . . . . . . . . . . . . . . 1 . . . . . . . . . STAY 1 | . 1 . . . . . . . . . . . . . . . . . . . . . . . . . . . . . . FOLLOW 1 | . 1 . . . . . . . . . . . . . . . . . . . . . . . . . . . . . . EXPLORE 1 | . . . . . . . . . . . . . . . . . . . . . . 1 . . . . . . . . . Ally Attacks 72 | . . 1 . . 21 . . . . . . . . . 21 . . . . . . . . . . . 20 . . 9 . Total Damage 1269 | . . . . . 236 . . . . . . . . . 238 . . . . . . . . . . . 390 . . 405 . Kills 8 | . . . . . 1 . . . . . . . . . 1 . . . . . . . . . . . 4 . . 2 . Allies Corrupted . | . . . . . . . . . . . . . . . . . . . . . . . . . . . . . . . . Allies Melted . | . . . . . . . . . . . . . . . . . . . . . . . . . . . . . . . . Intel | -11 -10 -10 -10 -9 -8 -7 -7 -7 -7 -6 -6 -6 -6 -6 -6 -5 -5 -5 -5 -5 -4 -4 -4 -4 -4 -3 -3 -3 -2 -2 -2 ------- Run | Yrd Mat Min Exi Min Mat Fac Low Low Dat Pro Fac Low Low Zio Dee Pro Fac Upp Upp Zhi Pro Fac Upp Upp War Pro Res Qua Res Tes Sec Active Infowar (turns) 13214 | . 430 236 104 18 350 278 132 83 23 126 673 301 78 363 56 317 1816 364 302 . . 558 554 366 754 191 859 671 1521 810 880 Optics 784 | . . . . . . . . . . . . . . 2 . . . . . . . . . . . . . . 531 65 186 Sensors 7003 | . . . . . 334 278 132 83 23 126 673 301 78 363 56 . 1753 364 302 . . 459 . . . . 332 487 . 205 654 Terrain 9025 | . . . . . . . . . . . . . . . . 317 1815 364 92 . . 99 554 366 754 191 859 457 1493 803 861 Structural 1194 | . . . . . 22 5 105 . . . 561 301 78 122 . . . . . . . . . . . . . . . . . Seismic 808 | . 430 236 104 18 19 . . . . . . . . . . . . . . . . . . . . . . . 1 . . Cloaking 2 | . . . . . . . . . . . . . . . . . . . . . . . . . . . . . . 2 . Jamming 260 | . . . . . . . . . . . . . . . . . . . . . . . . . . . . . 260 . . ECM 1903 | . . . . . . . . . . . . . . . . . . . . . . . . . . . 270 671 . 744 218 Robot Analysis Total 7 | . 1 . . . 2 . . . . . . . . . . . . . . 4 . . . . . . . . . . . Derelict Logs Recovered 15 | . . 2 . . . . 1 2 . 3 . 1 . 1 . 2 . 2 . . . . . 1 . . . . . . . Drone Launches 2 | . . . . . . . . . . . . . . . . . . . . . . 2 . . . . . . . . . Drone Recoveries . | . . . . . . . . . . . . . . . . . . . . . . . . . . . . . . . . Exploration | -11 -10 -10 -10 -9 -8 -7 -7 -7 -7 -6 -6 -6 -6 -6 -6 -5 -5 -5 -5 -5 -4 -4 -4 -4 -4 -3 -3 -3 -2 -2 -2 ------------- Run | Yrd Mat Min Exi Min Mat Fac Low Low Dat Pro Fac Low Low Zio Dee Pro Fac Upp Upp Zhi Pro Fac Upp Upp War Pro Res Qua Res Tes Sec Turns Passed 17559 | 39 522 236 104 18 350 278 132 83 23 235 1022 301 78 363 72 818 1857 364 1208 209 893 1262 554 366 754 191 859 736 1763 810 1059 Spaces Moved 17009 | 38 785 381 181 15 591 555 341 231 77 586 2001 357 236 942 261 163 953 207 353 139 318 508 375 263 680 170 525 365 2230 779 1403 Core 127 | 38 88 . . . . . . . . . . . . . . . . . . . . . . . . . . 1 . . . Treads . | . . . . . . . . . . . . . . . . . . . . . . . . . . . . . . . . Legs 5380 | . . . . . 17 . . . . . . . . . . 158 953 207 353 139 318 508 375 263 680 170 525 305 . . 409 Wheels . | . . . . . . . . . . . . . . . . . . . . . . . . . . . . . . . . Hover 4062 | . . . . . . . . . . . . . . . . . . . . . . . . . . . . 59 2230 779 994 Flight 7440 | . 697 381 181 15 574 555 341 231 77 586 2001 357 236 942 261 5 . . . . . . . . . . . . . . . Fastest Speed 14 | 50 37 37 37 37 32 28 24 30 30 30 26 26 26 26 14 26 120 130 130 135 135 117 117 102 90 90 90 52 52 55 30 Average Speed 65 | 50 38 37 37 37 35 29 29 30 30 30 26 26 26 26 23 175 132 140 151 140 168 130 117 124 98 90 100 121 60 58 48 Slowest Speed 250 | 50 60 37 37 37 120 32 30 30 30 30 30 26 26 26 26 180 180 186 186 186 180 210 117 187 187 90 176 250 63 131 144 Overloaded Moves 58 | . . . . . . . 7 . . . . . . . 51 . . . . . . . . . . . . . . . . Propulsion Burnouts . | . . . . . . . . . . . . . . . . . . . . . . . . . . . . . . . . Robots Hopped 31 | . 5 12 . . . 2 . . . 1 11 . . . . . . . . . . . . . . . . . . . . Potential Cave-ins 8 | . . . . . . . . . . . . . . . . . . . . . . . . . . . 2 . 2 . 4 Cave-ins Triggered 1 | . . . . . . . 1 . . . . . . . . . . . . . . . . . . . . . . . . Teleports 1 | . . . . . . . . . . . . . . . . . . . . . . . . . . . . . . . 1 Exploration Rate (%) 51 | 3 92 73 51 8 50 15 62 42 68 67 56 52 48 85 58 31 29 48 46 60 53 17 61 40 88 36 22 58 70 77 76 Regions Visited 31 Branch Regions 23 Pre-discovered Areas 20 | . 5 1 1 . 1 . . . 1 2 1 . . 2 . . 2 1 . 3 . . . . . . . . . . . Known Exits Taken 26 | . . . . . 1 1 1 1 1 1 1 1 1 1 1 1 1 1 1 1 1 1 1 1 1 1 1 1 1 1 . Unknown Exits Taken 5 | 1 1 1 1 1 . . . . . . . . . . . . . . . . . . . . . . . . . . . Scrap Searched 26 | . . 1 . . . . 1 1 . 4 . 3 2 2 . 1 . 3 1 . 2 . 3 2 . . . . . . . Spaces Dug 198 | . 3 . . . 3 7 10 4 . 6 42 5 2 . . . 22 1 9 . 10 2 . 1 . 1 22 1 17 14 16 Terrain Destroyed 481 | 2 3 . . . 3 7 10 4 . 6 42 5 2 . . 3 90 1 30 . 37 17 8 5 1 6 41 24 48 32 54 Melee 82 | . 3 . . . 3 7 10 4 . 6 42 5 2 . . . . . . . . . . . . . . . . . . Projectile 297 | . . . . . . . . . . . . . . . . 3 37 1 30 . 37 17 8 5 1 6 41 24 30 32 25 AOE 101 | 2 . . . . . . . . . . . . . . . . 53 . . . . . . . . . . . 17 . 29 Terrain Rammed . | . . . . . . . . . . . . . . . . . . . . . . . . . . . . . . . . Walls Destroyed . | . . . . . . . . . . . . . . . . . . . . . . . . . . . . . . . . Machines Disabled . | . . . . . . . . . . . . . . . . . . . . . . . . . . . . . . . . Actions | -11 -10 -10 -10 -9 -8 -7 -7 -7 -7 -6 -6 -6 -6 -6 -6 -5 -5 -5 -5 -5 -4 -4 -4 -4 -4 -3 -3 -3 -2 -2 -2 --------- Run | Yrd Mat Min Exi Min Mat Fac Low Low Dat Pro Fac Low Low Zio Dee Pro Fac Upp Upp Zhi Pro Fac Upp Upp War Pro Res Qua Res Tes Sec Total 22098 | 48 938 451 217 26 676 647 358 237 76 630 2403 554 244 1058 267 689 1425 279 942 152 598 1008 434 282 749 194 727 561 2566 1010 1652 Wait 3509 | . 95 65 37 12 8 63 6 1 . 26 315 193 3 96 . 508 374 69 520 . 232 414 22 4 43 16 105 89 71 73 49 Move 16924 | 37 774 363 180 14 590 550 340 230 76 583 1979 356 235 941 260 162 952 206 352 138 317 507 374 262 679 169 524 364 2229 778 1403 Hop 23 | . 5 5 . . . 2 . . . 1 10 . . . . . . . . . . . . . . . . . . . . Pick Up 142 | 2 4 4 . . 7 4 . . . . 8 . . 2 2 . 5 . 2 1 . 2 1 . 2 . 5 7 54 6 24 Fast Attach 197 | 4 7 . . . 9 4 1 . . 2 12 . . 7 1 . 4 1 5 7 . 14 2 1 5 1 11 9 45 19 26 Attach 87 | . . . . . 5 4 . . . 2 3 . . 1 . 3 2 . 3 . 2 2 1 1 . . 4 15 17 10 12 Detach 24 | . . . . . 1 1 . . . 1 . . . . . 2 . . 2 . . . . 1 1 . 1 2 8 . 4 Swap 84 | . 8 1 . . 3 4 . . . 2 7 . 1 . . . 4 . . . . 3 2 3 3 . 8 4 12 9 10 Drop 237 | 1 5 4 . . 9 2 . . . 1 14 . 1 10 2 8 11 2 12 6 6 12 2 . 9 . 4 9 68 23 16 Fire 709 | 4 37 9 . . 18 . . . . . . . . . . 6 73 1 46 . 41 53 30 10 7 7 64 59 62 76 106 Melee 136 | . 3 . . . 26 12 11 6 . 12 55 5 4 . 2 . . . . . . . . . . . . . . . . Ram . | . . . . . . . . . . . . . . . . . . . . . . . . . . . . . . . . Kick 8 | . . . . . . . . . . . . . . . . . . . . . . 1 . . . 1 1 3 . . 2 Crush . | . . . . . . . . . . . . . . . . . . . . . . . . . . . . . . . . Escape Stasis . | . . . . . . . . . . . . . . . . . . . . . . . . . . . . . . . . Rewire 16 | . . . . . . . . . . . . . . . . . . . . . . . . . . . . . . 16 . Trap . | . . . . . . . . . . . . . . . . . . . . . . . . . . . . . . . . Miscellaneous 2 | . . . . . . 1 . . . . . . . 1 . . . . . . . . . . . . . . . . . Route ------- -11/Scrapyard -10/Materials (discovered 5 exits: [*Mat x2] / *Min x2 / [*Sub]) -10/Mines -10/Exiles -9/Mines -8/Materials (discovered 2 exits: *Fac x2) -7/Factory (discovered 2 exits: *Low x2) -7/Lower Caves -7/Lower Caves -7/Data Miner -6/Proximity Caves -6/Factory (discovered 5 exits: *Fac x3 / *Low x2) -6/Lower Caves -6/Lower Caves (discovered 2 exits: *Fac / *Zio) -6/Zion (discovered 2 exits: *Dee / *Pro) -6/Deep Caves -5/Proximity Caves -5/Factory (discovered 4 exits: Fac x2 / *Upp x2) -5/Upper Caves -5/Upper Caves -5/Zhirov -4/Proximity Caves -4/Factory (discovered 3 exits: *Upp / Ext x2) -4/Upper Caves -4/Upper Caves (discovered 2 exits: *Res / *War) -4/Warlord -3/Proximity Caves -3/Research (discovered 4 exits: Res x2 / [Arm] / *Qua) -3/Quarantine -2/Research (discovered 3 exits: *Acc x2 / *Tes) -2/Testing (discovered 3 exits: *Acc / *Sec / *Frg) -2/Section 7 (discovered 1 exit: *Acc) History --------- Turn | Location | Event 11 | -11/Scrapyard | Discovered new exit (range 15) 40 | -11/Scrapyard | Entered Materials 180 | -10/Materials | Discovered new exit (range 11) 280 | -10/Materials | Learned location of Subcaves (-10) 311 | -10/Materials | Build established: Mutant 386 | -10/Materials | Repaired Flight Unit 412 | -10/Materials | Learned location of 1 exit from Recycling 431 | -10/Materials | Core integrity fell below 50% 434 | -10/Materials | Learned location of Storage (-8) 444 | -10/Materials | Learned location of 1 exit from Recycling 462 | -10/Materials | Learned location of Mines (-10) 464 | -10/Materials | Discovered new exit (range 9) 491 | -10/Materials | Learned 4 Recycling zone layouts 500 | -10/Materials | Discovered new exit (range 16) 503 | -10/Materials | Discovered new exit (range 16) 560 | -10/Materials | Discovered new exit (range 3) 562 | -10/Materials | Entered Mines 562 | -10/Mines | Accompanied by 1 ally 565 | -10/Mines | Assisted by bots powering up and referring to "LRC-V3" 573 | -10/Mines | Learned location of 1 exit from Materials 592 | -10/Mines | Received a Rocket Launcher from a helpful Derelict 613 | -10/Mines | A weapon hastily lodged in a ceiling crevice suddenly fell to the ground 715 | -10/Mines | Met a Derelict who couldn't figure out how to use a Trap Extractor 725 | -10/Mines | Learned location of Zion (-6) 754 | -10/Mines | Deemed a non-threat by the Exiles lab entrance 754 | -10/Mines | Discovered new exit (range 5) 798 | -10/Mines | Entered Exiles 798 | -10/Exiles | Accompanied by 4 allies 807 | -10/Exiles | Met 8R-AWN 814 | -10/Exiles | Met EX-HEX 824 | -10/Exiles | Met EX-BIN 828 | -10/Exiles | Met EX-DEC 841 | -10/Exiles | Build established: Commander-Mutant 860 | -10/Exiles | Discovered new exit (range 14) 902 | -10/Exiles | Entered Mines 902 | -9/Mines | Accompanied by 4 allies 905 | -9/Mines | Discovered new exit (range 9) 920 | -9/Mines | Entered Materials 920 | -8/Materials | Accompanied by 4 allies 920 | -8/Materials | Evolved 4 slots: Propulsion x2, Utility x2 921 | -8/Materials | Identified exit to Factory 1059 | -8/Materials | Lost 3 parts (1n2w) 1060 | -8/Materials | Lost 4 allies 1088 | -8/Materials | Destroyed 8 combat bots 1268 | -8/Materials | Discovered exit to Factory (range 10) 1270 | -8/Materials | Entered Factory 1270 | -7/Factory | Evolved 2 slots: Utility x2 1332 | -7/Factory | Repaired Broken Cesium-ion Thruster 1358 | -7/Factory | Discovered new exit (range 7) 1420 | -7/Factory | Identified exit to Lower Caves 1530 | -7/Factory | Fabricated Plasma Cutter (x2) 1548 | -7/Factory | Entered Lower Caves 1548 | -7/Lower Caves | Accompanied by 2 allies 1557 | -7/Lower Caves | Spotted B-75 Beast 1616 | -7/Lower Caves | Learned Factory security intel 1653 | -7/Lower Caves | Crushed by falling debris 1667 | -7/Lower Caves | Discovered new exit (range 16) 1679 | -7/Lower Caves | Identified exit to Lower Caves 1680 | -7/Lower Caves | Entered another Lower Caves area 1706 | -7/Lower Caves | Learned Factory trap positions 1721 | -7/Lower Caves | Learned Factory garrison access intel 1761 | -7/Lower Caves | Discovered new exit (range 7) 1762 | -7/Lower Caves | Identified exit to Data Miner 1763 | -7/Lower Caves | Entered Data Miner 1763 | -7/Data Miner | Discovered new exit (range 6) 1769 | -7/Data Miner | Met Data Miner 1775 | -7/Data Miner | Learned location of Section 7 (-2) 1775 | -7/Data Miner | Acquired the access code to Warlord's prototype stash 1780 | -7/Data Miner | Received God Mode back door access code from Data Miner 1786 | -7/Data Miner | Identified exit to Proximity Caves 1786 | -7/Data Miner | Entered Proximity Caves 1788 | -6/Proximity Caves | Spotter reported a threat 1789 | -6/Proximity Caves | Spotter reported a threat 1841 | -6/Proximity Caves | Spotter reported a threat 1846 | -6/Proximity Caves | Spotter reported a threat 1910 | -6/Proximity Caves | Attracted the attention of an 0b10 checkpoint 1912 | -6/Proximity Caves | Spotter reported a threat 1920 | -6/Proximity Caves | Learned Factory trap positions 1955 | -6/Proximity Caves | Build established: Hacker-Sprinter 1965 | -6/Proximity Caves | Spotter reported a threat 2001 | -6/Proximity Caves | Discovered new exit (range 12) 2002 | -6/Proximity Caves | Attracted the attention of an 0b10 outpost 2004 | -6/Proximity Caves | Identified exit to Factory 2021 | -6/Proximity Caves | Entered Factory 2021 | -6/Factory | Evolved 2 slots: Power x1, Utility x1 2022 | -6/Factory | Loaded intel: 109 trap records 2024 | -6/Factory | Loaded intel: 4 garrison access locations 2055 | -6/Factory | Discovered new exit (range 8) 2057 | -6/Factory | Identified exit to Lower Caves 2147 | -6/Factory | Repaired Broken Reaction Control System 2241 | -6/Factory | Discovered exit to Lower Caves (range 8) 2265 | -6/Factory | Discovered new exit (range 7) 2267 | -6/Factory | Identified exit to Factory 2371 | -6/Factory | Search patrols dispatched 2498 | -6/Factory | Spotted B-75 Beast 2523 | -6/Factory | Repaired Imp. Propulsion Shielding 2549 | -6/Factory | Repaired Lgt. Fission Core 2561 | -6/Factory | Learned location of Upper Caves (-5) 2575 | -6/Factory | Discovered exit to Factory (range 9) 2635 | -6/Factory | Learned location of 2 exits from Archives 2698 | -6/Factory | Learned Hub_04(d) emergency access door positions 2721 | -6/Factory | Search patrols dispatched 2779 | -6/Factory | Build established: Hacker-Scout 2790 | -6/Factory | Learned location of 2 exits from Lower Caves 2805 | -6/Factory | Fabricated Phase Shifter (x2) 2865 | -6/Factory | Repaired Lgt. Deuterium Engine 2866 | -6/Factory | Learned 4 Proximity Caves zone layouts 2922 | -6/Factory | Learned Hub_04(d) garrison access intel 3030 | -6/Factory | Fabricated Plasma Cutter (x2) 3043 | -6/Factory | Entered Lower Caves 3044 | -6/Lower Caves | Identified exit to Lower Caves 3060 | -6/Lower Caves | Learned location of 1 exit from Factory 3203 | -6/Lower Caves | Build established: Scout 3330 | -6/Lower Caves | Encountered a Warlord checkpoint 3344 | -6/Lower Caves | Entered another Lower Caves area 3345 | -6/Lower Caves | Identified exit to Zion 3346 | -6/Lower Caves | Discovered exit to Factory (range 9) 3354 | -6/Lower Caves | Encountered a Warlord checkpoint 3422 | -6/Lower Caves | Entered Zion 3440 | -6/Zion | Discovered new exit (range 9) 3442 | -6/Zion | Identified exit to Proximity Caves 3468 | -6/Zion | Gained Derelict followers 3478 | -6/Zion | Given A8's code to call for help 3525 | -6/Zion | Learned 4 Factory zone layouts 3534 | -6/Zion | Given the Hacking Drone Bay 3534 | -6/Zion | Found Prototype Device 3544 | -6/Zion | Found Prototype Processor 3544 | -6/Zion | Identified Exp. Targeting Computer 3547 | -6/Zion | Found Prototype Processor 3547 | -6/Zion | Identified Exp. Signal Interpreter 3552 | -6/Zion | Found Prototype Processor 3552 | -6/Zion | Identified Exp. Target Analyzer 3554 | -6/Zion | Found Prototype Processor 3554 | -6/Zion | Identified Spectral Analyzer 3556 | -6/Zion | Found Prototype Hackware 3569 | -6/Zion | Acquired unknown access codes intercepted by a Zionite 3617 | -6/Zion | Opened final containment barrier to the Deep Caves 3621 | -6/Zion | Discovered new exit (range 3) 3621 | -6/Zion | Saw the warning signs outside the Deep Caves entrance 3621 | -6/Zion | Identified exit to Deep Caves 3703 | -6/Zion | System corruption cleaned by Quarantine Array 3785 | -6/Zion | Entered Deep Caves 3785 | -6/Deep Caves | Accompanied by 5 allies 3794 | -6/Deep Caves | Found Surveybot 24 Chip 3795 | -6/Deep Caves | Found Surveybot 24 Scanner 3833 | -6/Deep Caves | Build established: Sprinter 3841 | -6/Deep Caves | Spotted AG-91633 3843 | -6/Deep Caves | Triggered Deep Caves wall 3843 | -6/Deep Caves | Spotted AS-71566 3843 | -6/Deep Caves | Exposed GOLEM chamber 3846 | -6/Deep Caves | Found GOLEM Unit 3856 | -6/Deep Caves | Discovered new exit (range 6) 3857 | -6/Deep Caves | Identified exit to Proximity Caves 3857 | -6/Deep Caves | Entered Proximity Caves 3876 | -5/Proximity Caves | Lost 3 parts (2u1w) 4150 | -5/Proximity Caves | Build established: Mutant 4434 | -5/Proximity Caves | Learned Factory emergency access door positions 4535 | -5/Proximity Caves | Build established: Golem 4605 | -5/Proximity Caves | Discovered exit to Factory (range 24) 4618 | -5/Proximity Caves | Learned Factory stockpile data 4675 | -5/Proximity Caves | Entered Factory 4675 | -5/Factory | Evolved 2 slots: Utility x2 4676 | -5/Factory | Identified exit to Upper Caves 4677 | -5/Factory | Identified exit to Factory 4679 | -5/Factory | Loaded intel: 104 trap records 5095 | -5/Factory | Fabricated Imp. VSS Leg? 5450 | -5/Factory | Identified Exp. Hacking Suite 5695 | -5/Factory | Cargo convoy interrupted 5724 | -5/Factory | Fabricated Exp. Hacking Suite (x1) 6235 | -5/Factory | Learned Armory trap positions 6300 | -5/Factory | Learned 4 Proximity Caves zone layouts 6357 | -5/Factory | Learned location of Testing (-2) 6405 | -5/Factory | Learned 2 Upper Caves zone layouts 6468 | -5/Factory | Learned location of 1 exit from Armory 6532 | -5/Factory | Entered Upper Caves 6827 | -5/Upper Caves | Learned 8 Factory zone layouts 6837 | -5/Upper Caves | Discovered new exit (range 23) 6895 | -5/Upper Caves | Identified exit to Upper Caves 6896 | -5/Upper Caves | Entered another Upper Caves area 8091 | -5/Upper Caves | Discovered new exit (range 6) 8102 | -5/Upper Caves | Identified exit to Zhirov 8104 | -5/Upper Caves | Entered Zhirov 8104 | -5/Zhirov | Discovered new exit (range 3) 8136 | -5/Zhirov | Met Zhirov 8169 | -5/Zhirov | Found Alien Artifact 8169 | -5/Zhirov | Identified Integrated Reactor 8169 | -5/Zhirov | Installed Integrated Reactor, increased core energy generation (+10) 8189 | -5/Zhirov | Found Alien Artifact 8268 | -5/Zhirov | Learned location of Quarantine (-3) 8268 | -5/Zhirov | Learned location of Command (-1) 8277 | -5/Zhirov | Zhirov requested help retrieving the SGEMP Prototype 8312 | -5/Zhirov | Identified exit to Proximity Caves 8313 | -5/Zhirov | Entered Proximity Caves 8493 | -4/Proximity Caves | Lost 3 parts (2n1u) 8608 | -4/Proximity Caves | Attracted the attention of an 0b10 checkpoint 9108 | -4/Proximity Caves | Attracted the attention of an 0b10 outpost 9128 | -4/Proximity Caves | Core integrity fell below 50% 9174 | -4/Proximity Caves | Lost 3 parts (1p2u) 9193 | -4/Proximity Caves | Spotted B-86 Titan 9206 | -4/Proximity Caves | Entered Factory 9206 | -4/Factory | Evolved 2 slots: Utility x2 9207 | -4/Factory | Identified exit to Extension 9756 | -4/Factory | Fabricated Imp. VSS Leg (x2) 10115 | -4/Factory | Build established: Hacker-Mutant 10306 | -4/Factory | Discovered new exit (range 8) 10314 | -4/Factory | Identified exit to Upper Caves 10468 | -4/Factory | Entered Upper Caves 10516 | -4/Upper Caves | Spotted B-86 Titan 10568 | -4/Upper Caves | Destroyed B-86 Titan 10588 | -4/Upper Caves | Found DCF Scrap (15 items) 10709 | -4/Upper Caves | Attracted the attention of an 0b10 checkpoint 10951 | -4/Upper Caves | Discovered new exit (range 14) 11020 | -4/Upper Caves | Identified exit to Upper Caves 11022 | -4/Upper Caves | Entered another Upper Caves area 11056 | -4/Upper Caves | Discovered new exit (range 12) 11078 | -4/Upper Caves | Identified exit to Research 11195 | -4/Upper Caves | Attracted the attention of an 0b10 outpost 11346 | -4/Upper Caves | Learned 8 Research zone layouts 11363 | -4/Upper Caves | Discovered new exit (range 16) 11387 | -4/Upper Caves | Identified exit to Warlord 11388 | -4/Upper Caves | Entered Warlord 11423 | -4/Warlord | System corruption cleaned by Quarantine Array 11635 | -4/Warlord | Visited the Vortex Lab 11636 | -4/Warlord | Warlord's base attacked by MAIN.C 11643 | -4/Warlord | Found Prototype Energy Gun 11643 | -4/Warlord | Identified Vortex Rail 11873 | -4/Warlord | Met Warlord 11879 | -4/Warlord | Opened Warlord's prototype stash 11882 | -4/Warlord | Found Prototype Reactor 11882 | -4/Warlord | Identified Vortex Chain Reactor 11986 | -4/Warlord | Warlord forces counterattacked 12000 | -4/Warlord | Spotted Executioner 12044 | -4/Warlord | Lost 4 allies 12051 | -4/Warlord | Spotted Executioner 12052 | -4/Warlord | Spotted Executioner 12105 | -4/Warlord | Lost 6 allies 12117 | -4/Warlord | Opened side exit 12129 | -4/Warlord | Discovered new exit (range 14) 12141 | -4/Warlord | Identified exit to Proximity Caves 12142 | -4/Warlord | Entered Proximity Caves 12256 | -3/Proximity Caves | Spotted B-86 Titan 12272 | -3/Proximity Caves | Entered a huge 0b10 base via the front door 12272 | -3/Proximity Caves | Spotted B-86 Titan 12319 | -3/Proximity Caves | Discovered exit to Research (range 12) 12333 | -3/Proximity Caves | Entered Research 12333 | -3/Research | Evolved 2 slots: Utility x1, Weapon x1 12334 | -3/Research | Identified exit to Research 12362 | -3/Research | Lost 3 parts (2u1w) 12436 | -3/Research | Spotted B-86 Titan 12633 | -3/Research | Build established: Hacker-Skirmisher 12897 | -3/Research | Discovered new exit (range 24) 12932 | -3/Research | Discovered new exit (range 23) 13010 | -3/Research | Found Exp. Targeting Computer 13077 | -3/Research | Discovered exit to Research (range 24) 13114 | -3/Research | Found Prototype Hackware 13114 | -3/Research | Identified Exp. System Shield 13117 | -3/Research | Found Exp. System Shield 13120 | -3/Research | Found Exp. System Shield 13191 | -3/Research | Identified exit to Quarantine 13192 | -3/Research | Entered Quarantine 13224 | -3/Quarantine | Identified Transdimensional Reconstructor 13243 | -3/Quarantine | Found Transdimensional Reconstructor 13372 | -3/Quarantine | Found Alien Artifact 13570 | -3/Quarantine | Repaired Broken Shield Leg 13599 | -3/Quarantine | Incoming investigation squad redirected 13727 | -3/Quarantine | Lost 4 parts (1p1n1u1w) 13810 | -3/Quarantine | System corruption reached 10% 13884 | -3/Quarantine | Core integrity fell below 50% 13912 | -3/Quarantine | Discovered exit to Research (range 12) 13918 | -3/Quarantine | Lost 25 parts (2p11n8u4w) 13921 | -3/Quarantine | Found Alien Artifact 13921 | -3/Quarantine | Identified Core Reset Matrix 13921 | -3/Quarantine | Identified Subatomic Replicator 13921 | -3/Quarantine | Used Core Reset Matrix 13925 | -3/Quarantine | Detected hypermatrix surge 13925 | -3/Quarantine | Sensed 9 artifacts in vicinity 13925 | -3/Quarantine | Discovered exit to Research (range 8) 13928 | -3/Quarantine | Entered Research 13928 | -2/Research | Warlord forces began assault on 0b10 13928 | -2/Research | Evolved 2 slots: Propulsion x2 14038 | -2/Research | Research machine network offline 14265 | -2/Research | Lost 4 allies 14320 | -2/Research | Found Prototype Hackware 14326 | -2/Research | Identified Exp. Hacking Suite 14326 | -2/Research | Found Prototype Processor 14332 | -2/Research | Identified Exp. Target Analyzer 14339 | -2/Research | Found Exp. Target Analyzer 14401 | -2/Research | Found Prototype Device 14402 | -2/Research | Identified Exp. ECM Suite 14405 | -2/Research | Found Exp. ECM Suite 14450 | -2/Research | Borebot progress halted 14505 | -2/Research | Build established: Scavenger-Mutant 14533 | -2/Research | Spotted Striker 14540 | -2/Research | Borebot progress halted 14558 | -2/Research | Spotted Executioner 14566 | -2/Research | Spotted Striker 14570 | -2/Research | Spotted Striker 14586 | -2/Research | Discovered new exit (range 12) 14592 | -2/Research | Lost 3 parts (1p1u1w) 14592 | -2/Research | Identified exit to Access 14654 | -2/Research | Met up with Warlord 14734 | -2/Research | Discovered new exit (range 16) 14744 | -2/Research | Identified exit to Testing 14748 | -2/Research | Found Unknown Launcher 14748 | -2/Research | Identified Gamma Bomb Array 14906 | -2/Research | Spotted B-90 Cyclops 15059 | -2/Research | Found Unknown Device 15059 | -2/Research | Identified Quantum Capacitor 15080 | -2/Research | Lost 5 parts (1p3u1w) 15144 | -2/Research | Spotted Executioner 15146 | -2/Research | Destroyed Executioner 15158 | -2/Research | Found Prototype Processor 15158 | -2/Research | Identified Exp. Core Analyzer 15347 | -2/Research | Found Prototype Device 15370 | -2/Research | Identified Adv. Kinecellerator 15384 | -2/Research | Found Prototype Processor 15387 | -2/Research | Identified Exp. Targeting Computer 15431 | -2/Research | Given Cave Seal Controls access code 15459 | -2/Research | Build established: Scavenger-Scout 15527 | -2/Research | Discovered exit to Access (range 22) 15564 | -2/Research | Found Exp. Core Analyzer 15658 | -2/Research | Found Prototype Device 15669 | -2/Research | Identified Exp. Thermal Shield 15691 | -2/Research | Entered Testing 15731 | -2/Testing | Found Prototype Device 15731 | -2/Testing | Identified 2N-1CE's Frost Array 15758 | -2/Testing | Found Prototype Launcher 15761 | -2/Testing | Identified Point Singularity Launcher 15845 | -2/Testing | Rewired PG-LSPTL85MYT 15870 | -2/Testing | Discovered exit to Access (range 12) 15931 | -2/Testing | Found Exp. Core Analyzer 16040 | -2/Testing | Spotted Striker 16220 | -2/Testing | Core integrity fell below 50% 16277 | -2/Testing | Lost 4 parts (1p1n1u1w) 16346 | -2/Testing | Found Prototype Energy Gun 16346 | -2/Testing | Identified Warp Gun 16451 | -2/Testing | Spotted Fortress 16495 | -2/Testing | Discovered new exit (range 8) 16495 | -2/Testing | Discovered new exit (range 6) 16497 | -2/Testing | Identified exit to Section 7 16499 | -2/Testing | Identified exit to Protoforge 16501 | -2/Testing | Entered Section 7 16502 | -2/Section 7 | Detected hypermatrix surge 16502 | -2/Section 7 | Sensed 24 artifacts in vicinity 16542 | -2/Section 7 | Spotted S7 Guard 16550 | -2/Section 7 | Found Core Membrane 16550 | -2/Section 7 | Installed Core Membrane, gained immunity to corruption 16602 | -2/Section 7 | Found Core Reset Matrix 16605 | -2/Section 7 | Sensed 22 artifacts in vicinity 16784 | -2/Section 7 | Incoming investigation squad redirected 16936 | -2/Section 7 | Spotted Executioner 16939 | -2/Section 7 | Spotted Executioner 16989 | -2/Section 7 | Destroyed Executioner 17013 | -2/Section 7 | Destroyed Executioner 17055 | -2/Section 7 | Found Exp. Core Analyzer 17056 | -2/Section 7 | Found Exp. Targeting Computer 17061 | -2/Section 7 | Found Prototype Device 17061 | -2/Section 7 | Identified Adv. Kinecellerator 17067 | -2/Section 7 | Found Exp. Targeting Computer 17145 | -2/Section 7 | Found Sigix Sheargun 17145 | -2/Section 7 | Spotted Striker 17146 | -2/Section 7 | Spotted Striker 17151 | -2/Section 7 | Spotted Striker 17152 | -2/Section 7 | Spotted Striker 17154 | -2/Section 7 | Found Sigix Sheargun 17156 | -2/Section 7 | Found Sigix Sheargun 17164 | -2/Section 7 | Warped through subspace 17186 | -2/Section 7 | Lost 5 parts (2n3u) 17186 | -2/Section 7 | Found Matter Drive 17197 | -2/Section 7 | Found Hpw. Transdimensional Reconstructor 17198 | -2/Section 7 | Incoming investigation squad redirected 17202 | -2/Section 7 | Found Terrabomb 17206 | -2/Section 7 | Spotted Executioner 17206 | -2/Section 7 | Spotted Executioner 17235 | -2/Section 7 | Spotted B-99 Colossus 17255 | -2/Section 7 | Found Core Expander 17256 | -2/Section 7 | Found Core Expander 17272 | -2/Section 7 | Found LRC Storage 17272 | -2/Section 7 | Installed LRC Storage, increased inventory capacity (+2) 17276 | -2/Section 7 | Found LRC Energy Well 17377 | -2/Section 7 | Lost 4 parts (1p1n2w) 17381 | -2/Section 7 | Integrated with Sigix Exoskeleton 17381 | -2/Section 7 | Installed LRC Energy Well, increased energy storage capacity (+250) 17383 | -2/Section 7 | Installed Core Expander, added new Power slot 17385 | -2/Section 7 | Installed Core Expander, added new Propulsion slot 17454 | -2/Section 7 | Found Integrated Reactor 17454 | -2/Section 7 | Installed Integrated Reactor, increased core energy generation (+10) 17461 | -2/Section 7 | Spotted S7 Guard 17467 | -2/Section 7 | Found Core Physics Calibrator 17479 | -2/Section 7 | Spotted S7 Guard 17484 | -2/Section 7 | Found Integrated Thermoelectric Network 17484 | -2/Section 7 | Installed Integrated Thermoelectric Network, gained heat-energy exchange potential 17511 | -2/Section 7 | Spotted Striker 17512 | -2/Section 7 | Core integrity fell below 20% 17516 | -2/Section 7 | Spotted B-90 Cyclops 17547 | -2/Section 7 | Discovered exit to Access (range 17) 17554 | -2/Section 7 | Spotted Investigator 17554 | -2/Section 7 | Spotted Executioner 17556 | -2/Section 7 | Scanned by Researcher 17557 | -2/Section 7 | Sigix Exoskeleton integrity reduced to 80% 17557 | -2/Section 7 | Intercept squad dispatched 17557 | -2/Section 7 | Spotted Combat Programmer 17557 | -2/Section 7 | Spotted Tracker 17557 | -2/Section 7 | Spotted Combat Programmer 17557 | -2/Section 7 | Spotted Tracker 17560 | -2/Section 7 | Destroyed by Tracker with Linked Autogun Last Messages --------------- 17559_ G-73 Enforcer destroyed. 17559_ Destroyed Prototype Launcher. 17559_ G-73 Enforcer destroyed. 17559_ Quantum Shear penetrates P-80 Master. 17559_ Destroyed Unknown Hover Unit. 17559_ G-73 Enforcer destroyed. 17559_ Destroyed Unknown Flight Unit. 17559_ Destroyed Unknown Device. 17559_ G-73 Enforcer destroyed. 17559_ Penetrated by EMDS Slug. 17559_ Suspension Chamber breached. 17559_ Held in stasis. 17559_ C-65 Expert is analyzing... 17559_ Slug penetrates G-73 Enforcer. 17559_ G-73 Enforcer destroyed. 17559_ Penetrated by Slug. 17559_ Held in stasis. 17559_ Investigator is analyzing... 17560_ Penetrated by Slug. 17560_ Slug penetrates Quantum Generator. Map ----- +----------------------------------------------------+ | # """"######################???############### | | / """########################??############## | | # ""#########################??############# | | # "###########################??########### | | ###################################??########## | | ####################################????####### | | #####################################????????## | | #####################################?????????? | | ######################################????????? | | ################## # ####???????? | | ###### ### # | ####???????? | | ###### ### # ####???????? | | ###### """"""" ### """"" + #####??????? | | ###### """"""" ### """"" # Y####??????? | | ###### """"""" + + "!" # == #####??????? | | ###### ### " " # == #####??????? | | ###### ### # = #####??????? | | ###### ### = # ######?????? | | #############+#####[ #=#+######+########??????? | | =% ggg s[c %[ ??????? | | b g % mg% ?????? | | = """ """ """s *=b[ gh ??????? | | [%= """ """ """ /%* ??????? | | ##/### """ """ """ *c ###########?????? | | # """ """ """ %! Eb ##########??????? | | # """ """ """ X % ############?????? | | "" # """ """ """g %/ *%Ypg #########??????? | | "" # """ """l"""%= %[ YspY #########??????? | | """" # kR *[cbgcsY h w #########??????? | | ""!" + c %g p%hh! #########??????? | | """" ### """"T"""" ### [ b ############??????? | | ###"""""""""""# #####???????? | | ############### #####???????? | | #################### """ #### ???????? | | #################### ""!"" ####????????? | | #################### """"" ###?????????? | | #################### ###?????????? | | #################### ##??????????? | | ############?#########################???????????? | | | | | | | | | | | | | | | | | | | | | | | +----------------------------------------------------+ Best States ------------- Heat Dissipation 175 Coolant Potential 120 Energy Generation 81 Energy Capacity 1700 Matter Stores 300 Matter Capacity 550 Sight Range 23 Robot Scan Range 16 Terrain Scan Range 24 Terrain Scan Density 2010 ECM Strength 3 Jamming Range 16 Cloak Strength 2 Additional Mass Support 20 Base Temperature (-) 200 Armor Coverage 325 Resistance: KI 50 Resistance: TH 50 Resistance: EX 50 Resistance: EM 50 Resistance: I 50 Resistance: S 50 Resistance: P 50 Power Shielding 66 Propulsion Shielding 66 Utility Shielding 66 Weapon Shielding 66 Phase Shifting 5 Evasion (%) 77 Targeting Accuracy 12 Melee Accuracy 6 Target Analysis 15 Core Analysis 8 Armor Integrity Analysis 40 Particle Charging 30 Offensive Hacking 32 Defensive Hacking 32 Authchip Count 1 Item Schematics ----------------- None Robot Schematics ------------------ None Fabricated ------------ Plasma Cutter | x2 | -7/Factory | Authchip Phase Shifter | x2 | -6/Factory | Authchip Plasma Cutter | x2 | -6/Factory | Authchip Imp. VSS Leg | x2 | -5/Factory Exp. Hacking Suite | x1 | -5/Factory | Authchip Imp. VSS Leg | x2 | -4/Factory Repaired ---------- Flight Unit | 10% | -10/Materials Cesium-ion Thruster | 36% | -7/Factory | Broken Reaction Control System | 6% | -6/Factory | Broken Imp. Propulsion Shielding | 71% | -6/Factory Lgt. Fission Core | 46% | -6/Factory Lgt. Deuterium Engine | 70% | -6/Factory Shield Leg | 8% | -3/Quarantine | Broken Alien Tech Used ----------------- Integrated Reactor Core Reset Matrix Core Membrane Sigix Sheargun Transdimensional Reconstructor LRC Storage Sigix Exoskeleton LRC Energy Well Core Expander Matter Drive Integrated Thermoelectric Network Core Physics Calibrator Achievements -------------- None Challenges ------------ None Game ------ Seed TransmissionRecyclingRouter Manual? 0 Play Time 04:37:23 Cumulative 321.3 hours Start 2025.07.08 @ 19:58:56 End 2025.07.09 @ 13:35:24 Sessions 5 Manual Loads 0 Difficulty Rogue Special Mode None Game No. 157 Rogue 157 Adventurer 0 Explorer 0 Win Type - Total 22 Types 8/1/5/1/5/1/0/0/0/1 Lore% 88 Gallery% 78 Achievement% 76 Wizard Run 0 Options --------- Layout 1 ASCII 0 Keyboard 0 Movement Numpad Keybinds 0 Fullscreen 1 Font 24/Smallcaps Map View 50x35 Zoom Use 0% Tactical HUD 1 Map Filters NONE Filters NONE Steam 1 RUN: 4703dc02-8686-4a30-aacd-bfe1a2b8184d